{"text_format":"3","workbook":"xlsx","n_sheets":4,"sheets":["TL – POVZETEK PRORAČUNA","POVZETEK MESEČNIH STROŠKOV","SEZNAM STROŠKOV","DOBRODELNO IN SPONZORSTVA"],"not_rendered":{"images":1,"defined_names":15},"read":"whole","date_system":"1900"}

{"sheet":"TL – POVZETEK PRORAČUNA","index":0,"n_rows":16,"n_cols":7,"rows_kept":16,"merged":[[1,1,1,4]]}
[]
[null,"DEJANSKO in PRORAČUN – TEKOČE LETO",{"$nulls":3},"LETO",{"$f":"YEAR(TODAY())","v":2019}]
[null,"Koda G/K","Naslov računa","Dejansko","Proračun","Preostalo €","Preostali %"]
[null,1000,"Oglaševanje",{"$f":"SUMIF(Mesečni_znesek_povzetek[Koda G/K],Tabela_tekoče_leto[[#This Row],[Koda G/K]],Mesečni_znesek_povzetek[Vsota])","v":{"v":0,"d":"0.00 €"}},{"v":100000,"d":"100,000.00 €"},{"$f":"IF(Tabela_tekoče_leto[[#This Row],[Proračun]]=\"\",\"\",Tabela_tekoče_leto[[#This Row],[Proračun]]-Tabela_tekoče_leto[[#This Row],[Dejansko]])","v":{"v":100000,"d":"100,000.00 €"}},{"$f":"IFERROR(Tabela_tekoče_leto[[#This Row],[Preostalo €]]/Tabela_tekoče_leto[[#This Row],[Proračun]],\"\")","v":{"v":1,"d":"100.00%"}}]
[null,2000,"Pisarniška oprema",{"$f":"SUMIF(Mesečni_znesek_povzetek[Koda G/K],Tabela_tekoče_leto[[#This Row],[Koda G/K]],Mesečni_znesek_povzetek[Vsota])","v":{"v":0,"d":"0.00 €"}},{"v":100000,"d":"100,000.00 €"},{"$f":"IF(Tabela_tekoče_leto[[#This Row],[Proračun]]=\"\",\"\",Tabela_tekoče_leto[[#This Row],[Proračun]]-Tabela_tekoče_leto[[#This Row],[Dejansko]])","v":{"v":100000,"d":"100,000.00 €"}},{"$f":"IFERROR(Tabela_tekoče_leto[[#This Row],[Preostalo €]]/Tabela_tekoče_leto[[#This Row],[Proračun]],\"\")","v":{"v":1,"d":"100.00%"}}]
[null,3000,"Tiskalniki",{"$f":"SUMIF(Mesečni_znesek_povzetek[Koda G/K],Tabela_tekoče_leto[[#This Row],[Koda G/K]],Mesečni_znesek_povzetek[Vsota])","v":{"v":0,"d":"0.00 €"}},{"v":100000,"d":"100,000.00 €"},{"$f":"IF(Tabela_tekoče_leto[[#This Row],[Proračun]]=\"\",\"\",Tabela_tekoče_leto[[#This Row],[Proračun]]-Tabela_tekoče_leto[[#This Row],[Dejansko]])","v":{"v":100000,"d":"100,000.00 €"}},{"$f":"IFERROR(Tabela_tekoče_leto[[#This Row],[Preostalo €]]/Tabela_tekoče_leto[[#This Row],[Proračun]],\"\")","v":{"v":1,"d":"100.00%"}}]
[null,4000,"Stroški strežnika",{"$f":"SUMIF(Mesečni_znesek_povzetek[Koda G/K],Tabela_tekoče_leto[[#This Row],[Koda G/K]],Mesečni_znesek_povzetek[Vsota])","v":{"v":0,"d":"0.00 €"}},{"v":100000,"d":"100,000.00 €"},{"$f":"IF(Tabela_tekoče_leto[[#This Row],[Proračun]]=\"\",\"\",Tabela_tekoče_leto[[#This Row],[Proračun]]-Tabela_tekoče_leto[[#This Row],[Dejansko]])","v":{"v":100000,"d":"100,000.00 €"}},{"$f":"IFERROR(Tabela_tekoče_leto[[#This Row],[Preostalo €]]/Tabela_tekoče_leto[[#This Row],[Proračun]],\"\")","v":{"v":1,"d":"100.00%"}}]
[null,5000,"Zaloge",{"$f":"SUMIF(Mesečni_znesek_povzetek[Koda G/K],Tabela_tekoče_leto[[#This Row],[Koda G/K]],Mesečni_znesek_povzetek[Vsota])","v":{"v":0,"d":"0.00 €"}},{"v":50000,"d":"50,000.00 €"},{"$f":"IF(Tabela_tekoče_leto[[#This Row],[Proračun]]=\"\",\"\",Tabela_tekoče_leto[[#This Row],[Proračun]]-Tabela_tekoče_leto[[#This Row],[Dejansko]])","v":{"v":50000,"d":"50,000.00 €"}},{"$f":"IFERROR(Tabela_tekoče_leto[[#This Row],[Preostalo €]]/Tabela_tekoče_leto[[#This Row],[Proračun]],\"\")","v":{"v":1,"d":"100.00%"}}]
[null,6000,"Stroški odjemalca",{"$f":"SUMIF(Mesečni_znesek_povzetek[Koda G/K],Tabela_tekoče_leto[[#This Row],[Koda G/K]],Mesečni_znesek_povzetek[Vsota])","v":{"v":0,"d":"0.00 €"}},{"v":25000,"d":"25,000.00 €"},{"$f":"IF(Tabela_tekoče_leto[[#This Row],[Proračun]]=\"\",\"\",Tabela_tekoče_leto[[#This Row],[Proračun]]-Tabela_tekoče_leto[[#This Row],[Dejansko]])","v":{"v":25000,"d":"25,000.00 €"}},{"$f":"IFERROR(Tabela_tekoče_leto[[#This Row],[Preostalo €]]/Tabela_tekoče_leto[[#This Row],[Proračun]],\"\")","v":{"v":1,"d":"100.00%"}}]
[null,7000,"Računalniki",{"$f":"SUMIF(Mesečni_znesek_povzetek[Koda G/K],Tabela_tekoče_leto[[#This Row],[Koda G/K]],Mesečni_znesek_povzetek[Vsota])","v":{"v":0,"d":"0.00 €"}},{"v":75000,"d":"75,000.00 €"},{"$f":"IF(Tabela_tekoče_leto[[#This Row],[Proračun]]=\"\",\"\",Tabela_tekoče_leto[[#This Row],[Proračun]]-Tabela_tekoče_leto[[#This Row],[Dejansko]])","v":{"v":75000,"d":"75,000.00 €"}},{"$f":"IFERROR(Tabela_tekoče_leto[[#This Row],[Preostalo €]]/Tabela_tekoče_leto[[#This Row],[Proračun]],\"\")","v":{"v":1,"d":"100.00%"}}]
[null,8000,"Zdravstveno zavarovanje",{"$f":"SUMIF(Mesečni_znesek_povzetek[Koda G/K],Tabela_tekoče_leto[[#This Row],[Koda G/K]],Mesečni_znesek_povzetek[Vsota])","v":{"v":0,"d":"0.00 €"}},{"v":65000,"d":"65,000.00 €"},{"$f":"IF(Tabela_tekoče_leto[[#This Row],[Proračun]]=\"\",\"\",Tabela_tekoče_leto[[#This Row],[Proračun]]-Tabela_tekoče_leto[[#This Row],[Dejansko]])","v":{"v":65000,"d":"65,000.00 €"}},{"$f":"IFERROR(Tabela_tekoče_leto[[#This Row],[Preostalo €]]/Tabela_tekoče_leto[[#This Row],[Proračun]],\"\")","v":{"v":1,"d":"100.00%"}}]
[null,9000,"Stroški gradnje",{"$f":"SUMIF(Mesečni_znesek_povzetek[Koda G/K],Tabela_tekoče_leto[[#This Row],[Koda G/K]],Mesečni_znesek_povzetek[Vsota])","v":{"v":0,"d":"0.00 €"}},{"v":125000,"d":"125,000.00 €"},{"$f":"IF(Tabela_tekoče_leto[[#This Row],[Proračun]]=\"\",\"\",Tabela_tekoče_leto[[#This Row],[Proračun]]-Tabela_tekoče_leto[[#This Row],[Dejansko]])","v":{"v":125000,"d":"125,000.00 €"}},{"$f":"IFERROR(Tabela_tekoče_leto[[#This Row],[Preostalo €]]/Tabela_tekoče_leto[[#This Row],[Proračun]],\"\")","v":{"v":1,"d":"100.00%"}}]
[null,10000,"Trženje",{"$f":"SUMIF(Mesečni_znesek_povzetek[Koda G/K],Tabela_tekoče_leto[[#This Row],[Koda G/K]],Mesečni_znesek_povzetek[Vsota])","v":{"v":0,"d":"0.00 €"}},{"v":100000,"d":"100,000.00 €"},{"$f":"IF(Tabela_tekoče_leto[[#This Row],[Proračun]]=\"\",\"\",Tabela_tekoče_leto[[#This Row],[Proračun]]-Tabela_tekoče_leto[[#This Row],[Dejansko]])","v":{"v":100000,"d":"100,000.00 €"}},{"$f":"IFERROR(Tabela_tekoče_leto[[#This Row],[Preostalo €]]/Tabela_tekoče_leto[[#This Row],[Proračun]],\"\")","v":{"v":1,"d":"100.00%"}}]
[null,11000,"Dobrodelno dejavnosti",{"$f":"SUMIF(Mesečni_znesek_povzetek[Koda G/K],Tabela_tekoče_leto[[#This Row],[Koda G/K]],Mesečni_znesek_povzetek[Vsota])","v":{"v":0,"d":"0.00 €"}},{"v":250000,"d":"250,000.00 €"},{"$f":"IF(Tabela_tekoče_leto[[#This Row],[Proračun]]=\"\",\"\",Tabela_tekoče_leto[[#This Row],[Proračun]]-Tabela_tekoče_leto[[#This Row],[Dejansko]])","v":{"v":250000,"d":"250,000.00 €"}},{"$f":"IFERROR(Tabela_tekoče_leto[[#This Row],[Preostalo €]]/Tabela_tekoče_leto[[#This Row],[Proračun]],\"\")","v":{"v":1,"d":"100.00%"}}]
[null,12000,"Sponzorstva",{"$f":"SUMIF(Mesečni_znesek_povzetek[Koda G/K],Tabela_tekoče_leto[[#This Row],[Koda G/K]],Mesečni_znesek_povzetek[Vsota])","v":{"v":0,"d":"0.00 €"}},{"v":50000,"d":"50,000.00 €"},{"$f":"IF(Tabela_tekoče_leto[[#This Row],[Proračun]]=\"\",\"\",Tabela_tekoče_leto[[#This Row],[Proračun]]-Tabela_tekoče_leto[[#This Row],[Dejansko]])","v":{"v":50000,"d":"50,000.00 €"}},{"$f":"IFERROR(Tabela_tekoče_leto[[#This Row],[Preostalo €]]/Tabela_tekoče_leto[[#This Row],[Proračun]],\"\")","v":{"v":1,"d":"100.00%"}}]
[null,"Vsota",null,{"$f":"SUBTOTAL(109,Tabela_tekoče_leto[Dejansko])","v":{"v":0,"d":"0.00 €"}},{"$f":"SUBTOTAL(109,Tabela_tekoče_leto[Proračun])","v":{"v":1140000,"d":"1,140,000.00 €"}},{"$f":"SUBTOTAL(109,Tabela_tekoče_leto[Preostalo €])","v":{"v":1140000,"d":"1,140,000.00 €"}},{"$f":"Tabela_tekoče_leto[[#Totals],[Preostalo €]]/Tabela_tekoče_leto[[#Totals],[Proračun]]","v":{"v":1,"d":"100.00%"}}]

{"sheet":"POVZETEK MESEČNIH STROŠKOV","index":1,"n_rows":18,"n_cols":17,"rows_kept":18,"merged":[[1,1,1,16]]}
[]
[null,"POVZETEK MESEČNIH STROŠKOV"]
[null,"Razčlenjevalnik za filtriranje podatkov po naslovih računa je v tej celici.",null,{"$f":"DATEVALUE(\"1-JAN\"&_LETO)","v":{"v":43466,"d":"4346600.00%"}},{"$f":"DATEVALUE(\"1-FEB\"&_LETO)","v":{"v":43497,"d":"4349700.00%"}},{"$f":"DATEVALUE(\"1-MAR\"&_LETO)","v":{"v":43525,"d":"4352500.00%"}},{"$f":"DATEVALUE(\"1-APR\"&_LETO)","v":{"v":43556,"d":"4355600.00%"}},{"$f":"DATEVALUE(\"1-MAJ\"&_LETO)","v":{"v":43586,"d":"4358600.00%"}},{"$f":"DATEVALUE(\"1-JUN\"&_LETO)","v":{"v":43617,"d":"4361700.00%"}},{"$f":"DATEVALUE(\"1-JUL\"&_LETO)","v":{"v":43647,"d":"4364700.00%"}},{"$f":"DATEVALUE(\"1-AVG\"&_LETO)","v":{"v":43678,"d":"4367800.00%"}},{"$f":"DATEVALUE(\"1-SEP\"&_LETO)","v":{"v":43709,"d":"4370900.00%"}},{"$f":"DATEVALUE(\"1-OKT\"&_LETO)","v":{"v":43739,"d":"4373900.00%"}},{"$f":"DATEVALUE(\"1-NOV\"&_LETO)","v":{"v":43770,"d":"4377000.00%"}},{"$f":"DATEVALUE(\"1-DEC\"&_LETO)","v":{"v":43800,"d":"4380000.00%"}}]
[{"$nulls":3},{"$f":"EOMONTH(D3,0)","v":{"v":43496,"d":"4349600.00%"}},{"$f":"EOMONTH(E3,0)","v":{"v":43524,"d":"4352400.00%"}},{"$f":"EOMONTH(F3,0)","v":{"v":43555,"d":"4355500.00%"}},{"$f":"EOMONTH(G3,0)","v":{"v":43585,"d":"4358500.00%"}},{"$f":"EOMONTH(H3,0)","v":{"v":43616,"d":"4361600.00%"}},{"$f":"EOMONTH(I3,0)","v":{"v":43646,"d":"4364600.00%"}},{"v":43677,"d":"4367700.00%"},{"v":43708,"d":"4370800.00%"},{"v":43738,"d":"4373800.00%"},{"v":43769,"d":"4376900.00%"},{"v":43799,"d":"4379900.00%"},{"v":43830,"d":"4383000.00%"}]
[null,"Koda G/K","Naslov računa","Januar","Februar","Marec","Apr","Maj","Jun","Julij","Avgust","September","Oktober","November","December","Vsota"," "]
[null,1000,"Oglaševanje",{"$f":"SUMIFS(Stroški_po_elementih[Preverite količino],Stroški_po_elementih[Koda G/K],Mesečni_znesek_povzetek[[#This Row],[Koda G/K]],Stroški_po_elementih[Datum računa],\">=\"&D$3,Stroški_po_elementih[Datum računa],\"<=\"&D$4)+SUMIFS(Drugo[Preverite količino],Drugo[Koda G/K],Mesečni_znesek_povzetek[[#This Row],[Koda G/K]],Drugo[Inicializirana je zahteva za preverjanje datuma],\">=\"&DATEVALUE(\" 1 \"&Mesečni_znesek_povzetek[[#Headers],[Januar]]&_LETO),Drugo[Inicializirana je zahteva za preverjanje datuma],\"<=\"&D$4)","v":{"v":0,"d":"0.00 €"}},{"$f":"SUMIFS(Stroški_po_elementih[Preverite količino],Stroški_po_elementih[Koda G/K],Mesečni_znesek_povzetek[[#This Row],[Koda G/K]],Stroški_po_elementih[Datum računa],\">=\"&E$3,Stroški_po_elementih[Datum računa],\"<=\"&E$4)+SUMIFS(Drugo[Preverite količino],Drugo[Koda G/K],Mesečni_znesek_povzetek[[#This Row],[Koda G/K]],Drugo[Inicializirana je zahteva za preverjanje datuma],\">=\"&DATEVALUE(\" 1 \"&Mesečni_znesek_povzetek[[#Headers],[Februar]]&_LETO),Drugo[Inicializirana je zahteva za preverjanje datuma],\"<=\"&E$4)","v":{"v":0,"d":"0.00 €"}},{"$f":"SUMIFS(Stroški_po_elementih[Preverite količino],Stroški_po_elementih[Koda G/K],Mesečni_znesek_povzetek[[#This Row],[Koda G/K]],Stroški_po_elementih[Datum računa],\">=\"&F$3,Stroški_po_elementih[Datum računa],\"<=\"&F$4)+SUMIFS(Drugo[Preverite količino],Drugo[Koda G/K],Mesečni_znesek_povzetek[[#This Row],[Koda G/K]],Drugo[Inicializirana je zahteva za preverjanje datuma],\">=\"&DATEVALUE(\" 1 \"&Mesečni_znesek_povzetek[[#Headers],[Marec]]&_LETO),Drugo[Inicializirana je zahteva za preverjanje datuma],\"<=\"&F$4)","v":{"v":0,"d":"0.00 €"}},{"$f":"SUMIFS(Stroški_po_elementih[Preverite količino],Stroški_po_elementih[Koda G/K],Mesečni_znesek_povzetek[[#This Row],[Koda G/K]],Stroški_po_elementih[Datum računa],\">=\"&G$3,Stroški_po_elementih[Datum računa],\"<=\"&G$4)+SUMIFS(Drugo[Preverite količino],Drugo[Koda G/K],Mesečni_znesek_povzetek[[#This Row],[Koda G/K]],Drugo[Inicializirana je zahteva za preverjanje datuma],\">=\"&DATEVALUE(\" 1 \"&Mesečni_znesek_povzetek[[#Headers],[Apr]]&_LETO),Drugo[Inicializirana je zahteva za preverjanje datuma],\"<=\"&G$4)","v":{"v":0,"d":"0.00 €"}},{"$f":"SUMIFS(Stroški_po_elementih[Preverite količino],Stroški_po_elementih[Koda G/K],Mesečni_znesek_povzetek[[#This Row],[Koda G/K]],Stroški_po_elementih[Datum računa],\">=\"&H$3,Stroški_po_elementih[Datum računa],\"<=\"&H$4)+SUMIFS(Drugo[Preverite količino],Drugo[Koda G/K],Mesečni_znesek_povzetek[[#This Row],[Koda G/K]],Drugo[Inicializirana je zahteva za preverjanje datuma],\">=\"&DATEVALUE(\" 1 \"&Mesečni_znesek_povzetek[[#Headers],[Maj]]&_LETO),Drugo[Inicializirana je zahteva za preverjanje datuma],\"<=\"&H$4)","v":{"v":0,"d":"0.00 €"}},{"$f":"SUMIFS(Stroški_po_elementih[Preverite količino],Stroški_po_elementih[Koda G/K],Mesečni_znesek_povzetek[[#This Row],[Koda G/K]],Stroški_po_elementih[Datum računa],\">=\"&I$3,Stroški_po_elementih[Datum računa],\"<=\"&I$4)+SUMIFS(Drugo[Preverite količino],Drugo[Koda G/K],Mesečni_znesek_povzetek[[#This Row],[Koda G/K]],Drugo[Inicializirana je zahteva za preverjanje datuma],\">=\"&DATEVALUE(\" 1 \"&Mesečni_znesek_povzetek[[#Headers],[Jun]]&_LETO),Drugo[Inicializirana je zahteva za preverjanje datuma],\"<=\"&I$4)","v":{"v":0,"d":"0.00 €"}},{"$f":"SUMIFS(Stroški_po_elementih[Preverite količino],Stroški_po_elementih[Koda G/K],Mesečni_znesek_povzetek[[#This Row],[Koda G/K]],Stroški_po_elementih[Datum računa],\">=\"&J$3,Stroški_po_elementih[Datum računa],\"<=\"&J$4)+SUMIFS(Drugo[Preverite količino],Drugo[Koda G/K],Mesečni_znesek_povzetek[[#This Row],[Koda G/K]],Drugo[Inicializirana je zahteva za preverjanje datuma],\">=\"&DATEVALUE(\" 1 \"&Mesečni_znesek_povzetek[[#Headers],[Julij]]&_LETO),Drugo[Inicializirana je zahteva za preverjanje datuma],\"<=\"&J$4)","v":{"v":0,"d":"0.00 €"}},{"$f":"SUMIFS(Stroški_po_elementih[Preverite količino],Stroški_po_elementih[Koda G/K],Mesečni_znesek_povzetek[[#This Row],[Koda G/K]],Stroški_po_elementih[Datum računa],\">=\"&K$3,Stroški_po_elementih[Datum računa],\"<=\"&K$4)+SUMIFS(Drugo[Preverite količino],Drugo[Koda G/K],Mesečni_znesek_povzetek[[#This Row],[Koda G/K]],Drugo[Inicializirana je zahteva za preverjanje datuma],\">=\"&DATEVALUE(\" 1 \"&Mesečni_znesek_povzetek[[#Headers],[Avgust]]&_LETO),Drugo[Inicializirana je zahteva za preverjanje datuma],\"<=\"&K$4)","v":{"v":0,"d":"0.00 €"}},{"$f":"SUMIFS(Stroški_po_elementih[Preverite količino],Stroški_po_elementih[Koda G/K],Mesečni_znesek_povzetek[[#This Row],[Koda G/K]],Stroški_po_elementih[Datum računa],\">=\"&L$3,Stroški_po_elementih[Datum računa],\"<=\"&L$4)+SUMIFS(Drugo[Preverite količino],Drugo[Koda G/K],Mesečni_znesek_povzetek[[#This Row],[Koda G/K]],Drugo[Inicializirana je zahteva za preverjanje datuma],\">=\"&DATEVALUE(\" 1 \"&Mesečni_znesek_povzetek[[#Headers],[September]]&_LETO),Drugo[Inicializirana je zahteva za preverjanje datuma],\"<=\"&L$4)","v":{"v":0,"d":"0.00 €"}},{"$f":"SUMIFS(Stroški_po_elementih[Preverite količino],Stroški_po_elementih[Koda G/K],Mesečni_znesek_povzetek[[#This Row],[Koda G/K]],Stroški_po_elementih[Datum računa],\">=\"&M$3,Stroški_po_elementih[Datum računa],\"<=\"&M$4)+SUMIFS(Drugo[Preverite količino],Drugo[Koda G/K],Mesečni_znesek_povzetek[[#This Row],[Koda G/K]],Drugo[Inicializirana je zahteva za preverjanje datuma],\">=\"&DATEVALUE(\" 1 \"&Mesečni_znesek_povzetek[[#Headers],[Oktober]]&_LETO),Drugo[Inicializirana je zahteva za preverjanje datuma],\"<=\"&M$4)","v":{"v":0,"d":"0.00 €"}},{"$f":"SUMIFS(Stroški_po_elementih[Preverite količino],Stroški_po_elementih[Koda G/K],Mesečni_znesek_povzetek[[#This Row],[Koda G/K]],Stroški_po_elementih[Datum računa],\">=\"&N$3,Stroški_po_elementih[Datum računa],\"<=\"&N$4)+SUMIFS(Drugo[Preverite količino],Drugo[Koda G/K],Mesečni_znesek_povzetek[[#This Row],[Koda G/K]],Drugo[Inicializirana je zahteva za preverjanje datuma],\">=\"&DATEVALUE(\" 1 \"&Mesečni_znesek_povzetek[[#Headers],[November]]&_LETO),Drugo[Inicializirana je zahteva za preverjanje datuma],\"<=\"&N$4)","v":{"v":0,"d":"0.00 €"}},{"$f":"SUMIFS(Stroški_po_elementih[Preverite količino],Stroški_po_elementih[Koda G/K],Mesečni_znesek_povzetek[[#This Row],[Koda G/K]],Stroški_po_elementih[Datum računa],\">=\"&O$3,Stroški_po_elementih[Datum računa],\"<=\"&O$4)+SUMIFS(Drugo[Preverite količino],Drugo[Koda G/K],Mesečni_znesek_povzetek[[#This Row],[Koda G/K]],Drugo[Inicializirana je zahteva za preverjanje datuma],\">=\"&DATEVALUE(\" 1 \"&Mesečni_znesek_povzetek[[#Headers],[December]]&_LETO),Drugo[Inicializirana je zahteva za preverjanje datuma],\"<=\"&O$4)","v":{"v":0,"d":"0.00 €"}},{"$f":"SUM(Mesečni_znesek_povzetek[[#This Row],[Januar]:[December]])","v":{"v":0,"d":"0.00 €"}}]
[null,2000,"Pisarniška oprema",{"$f":"SUMIFS(Stroški_po_elementih[Preverite količino],Stroški_po_elementih[Koda G/K],Mesečni_znesek_povzetek[[#This Row],[Koda G/K]],Stroški_po_elementih[Datum računa],\">=\"&D$3,Stroški_po_elementih[Datum računa],\"<=\"&D$4)+SUMIFS(Drugo[Preverite količino],Drugo[Koda G/K],Mesečni_znesek_povzetek[[#This Row],[Koda G/K]],Drugo[Inicializirana je zahteva za preverjanje datuma],\">=\"&DATEVALUE(\" 1 \"&Mesečni_znesek_povzetek[[#Headers],[Januar]]&_LETO),Drugo[Inicializirana je zahteva za preverjanje datuma],\"<=\"&D$4)","v":{"v":0,"d":"0.00 €"}},{"$f":"SUMIFS(Stroški_po_elementih[Preverite količino],Stroški_po_elementih[Koda G/K],Mesečni_znesek_povzetek[[#This Row],[Koda G/K]],Stroški_po_elementih[Datum računa],\">=\"&E$3,Stroški_po_elementih[Datum računa],\"<=\"&E$4)+SUMIFS(Drugo[Preverite količino],Drugo[Koda G/K],Mesečni_znesek_povzetek[[#This Row],[Koda G/K]],Drugo[Inicializirana je zahteva za preverjanje datuma],\">=\"&DATEVALUE(\" 1 \"&Mesečni_znesek_povzetek[[#Headers],[Februar]]&_LETO),Drugo[Inicializirana je zahteva za preverjanje datuma],\"<=\"&E$4)","v":{"v":0,"d":"0.00 €"}},{"$f":"SUMIFS(Stroški_po_elementih[Preverite količino],Stroški_po_elementih[Koda G/K],Mesečni_znesek_povzetek[[#This Row],[Koda G/K]],Stroški_po_elementih[Datum računa],\">=\"&F$3,Stroški_po_elementih[Datum računa],\"<=\"&F$4)+SUMIFS(Drugo[Preverite količino],Drugo[Koda G/K],Mesečni_znesek_povzetek[[#This Row],[Koda G/K]],Drugo[Inicializirana je zahteva za preverjanje datuma],\">=\"&DATEVALUE(\" 1 \"&Mesečni_znesek_povzetek[[#Headers],[Marec]]&_LETO),Drugo[Inicializirana je zahteva za preverjanje datuma],\"<=\"&F$4)","v":{"v":0,"d":"0.00 €"}},{"$f":"SUMIFS(Stroški_po_elementih[Preverite količino],Stroški_po_elementih[Koda G/K],Mesečni_znesek_povzetek[[#This Row],[Koda G/K]],Stroški_po_elementih[Datum računa],\">=\"&G$3,Stroški_po_elementih[Datum računa],\"<=\"&G$4)+SUMIFS(Drugo[Preverite količino],Drugo[Koda G/K],Mesečni_znesek_povzetek[[#This Row],[Koda G/K]],Drugo[Inicializirana je zahteva za preverjanje datuma],\">=\"&DATEVALUE(\" 1 \"&Mesečni_znesek_povzetek[[#Headers],[Apr]]&_LETO),Drugo[Inicializirana je zahteva za preverjanje datuma],\"<=\"&G$4)","v":{"v":0,"d":"0.00 €"}},{"$f":"SUMIFS(Stroški_po_elementih[Preverite količino],Stroški_po_elementih[Koda G/K],Mesečni_znesek_povzetek[[#This Row],[Koda G/K]],Stroški_po_elementih[Datum računa],\">=\"&H$3,Stroški_po_elementih[Datum računa],\"<=\"&H$4)+SUMIFS(Drugo[Preverite količino],Drugo[Koda G/K],Mesečni_znesek_povzetek[[#This Row],[Koda G/K]],Drugo[Inicializirana je zahteva za preverjanje datuma],\">=\"&DATEVALUE(\" 1 \"&Mesečni_znesek_povzetek[[#Headers],[Maj]]&_LETO),Drugo[Inicializirana je zahteva za preverjanje datuma],\"<=\"&H$4)","v":{"v":0,"d":"0.00 €"}},{"$f":"SUMIFS(Stroški_po_elementih[Preverite količino],Stroški_po_elementih[Koda G/K],Mesečni_znesek_povzetek[[#This Row],[Koda G/K]],Stroški_po_elementih[Datum računa],\">=\"&I$3,Stroški_po_elementih[Datum računa],\"<=\"&I$4)+SUMIFS(Drugo[Preverite količino],Drugo[Koda G/K],Mesečni_znesek_povzetek[[#This Row],[Koda G/K]],Drugo[Inicializirana je zahteva za preverjanje datuma],\">=\"&DATEVALUE(\" 1 \"&Mesečni_znesek_povzetek[[#Headers],[Jun]]&_LETO),Drugo[Inicializirana je zahteva za preverjanje datuma],\"<=\"&I$4)","v":{"v":0,"d":"0.00 €"}},{"$f":"SUMIFS(Stroški_po_elementih[Preverite količino],Stroški_po_elementih[Koda G/K],Mesečni_znesek_povzetek[[#This Row],[Koda G/K]],Stroški_po_elementih[Datum računa],\">=\"&J$3,Stroški_po_elementih[Datum računa],\"<=\"&J$4)+SUMIFS(Drugo[Preverite količino],Drugo[Koda G/K],Mesečni_znesek_povzetek[[#This Row],[Koda G/K]],Drugo[Inicializirana je zahteva za preverjanje datuma],\">=\"&DATEVALUE(\" 1 \"&Mesečni_znesek_povzetek[[#Headers],[Julij]]&_LETO),Drugo[Inicializirana je zahteva za preverjanje datuma],\"<=\"&J$4)","v":{"v":0,"d":"0.00 €"}},{"$f":"SUMIFS(Stroški_po_elementih[Preverite količino],Stroški_po_elementih[Koda G/K],Mesečni_znesek_povzetek[[#This Row],[Koda G/K]],Stroški_po_elementih[Datum računa],\">=\"&K$3,Stroški_po_elementih[Datum računa],\"<=\"&K$4)+SUMIFS(Drugo[Preverite količino],Drugo[Koda G/K],Mesečni_znesek_povzetek[[#This Row],[Koda G/K]],Drugo[Inicializirana je zahteva za preverjanje datuma],\">=\"&DATEVALUE(\" 1 \"&Mesečni_znesek_povzetek[[#Headers],[Avgust]]&_LETO),Drugo[Inicializirana je zahteva za preverjanje datuma],\"<=\"&K$4)","v":{"v":0,"d":"0.00 €"}},{"$f":"SUMIFS(Stroški_po_elementih[Preverite količino],Stroški_po_elementih[Koda G/K],Mesečni_znesek_povzetek[[#This Row],[Koda G/K]],Stroški_po_elementih[Datum računa],\">=\"&L$3,Stroški_po_elementih[Datum računa],\"<=\"&L$4)+SUMIFS(Drugo[Preverite količino],Drugo[Koda G/K],Mesečni_znesek_povzetek[[#This Row],[Koda G/K]],Drugo[Inicializirana je zahteva za preverjanje datuma],\">=\"&DATEVALUE(\" 1 \"&Mesečni_znesek_povzetek[[#Headers],[September]]&_LETO),Drugo[Inicializirana je zahteva za preverjanje datuma],\"<=\"&L$4)","v":{"v":0,"d":"0.00 €"}},{"$f":"SUMIFS(Stroški_po_elementih[Preverite količino],Stroški_po_elementih[Koda G/K],Mesečni_znesek_povzetek[[#This Row],[Koda G/K]],Stroški_po_elementih[Datum računa],\">=\"&M$3,Stroški_po_elementih[Datum računa],\"<=\"&M$4)+SUMIFS(Drugo[Preverite količino],Drugo[Koda G/K],Mesečni_znesek_povzetek[[#This Row],[Koda G/K]],Drugo[Inicializirana je zahteva za preverjanje datuma],\">=\"&DATEVALUE(\" 1 \"&Mesečni_znesek_povzetek[[#Headers],[Oktober]]&_LETO),Drugo[Inicializirana je zahteva za preverjanje datuma],\"<=\"&M$4)","v":{"v":0,"d":"0.00 €"}},{"$f":"SUMIFS(Stroški_po_elementih[Preverite količino],Stroški_po_elementih[Koda G/K],Mesečni_znesek_povzetek[[#This Row],[Koda G/K]],Stroški_po_elementih[Datum računa],\">=\"&N$3,Stroški_po_elementih[Datum računa],\"<=\"&N$4)+SUMIFS(Drugo[Preverite količino],Drugo[Koda G/K],Mesečni_znesek_povzetek[[#This Row],[Koda G/K]],Drugo[Inicializirana je zahteva za preverjanje datuma],\">=\"&DATEVALUE(\" 1 \"&Mesečni_znesek_povzetek[[#Headers],[November]]&_LETO),Drugo[Inicializirana je zahteva za preverjanje datuma],\"<=\"&N$4)","v":{"v":0,"d":"0.00 €"}},{"$f":"SUMIFS(Stroški_po_elementih[Preverite količino],Stroški_po_elementih[Koda G/K],Mesečni_znesek_povzetek[[#This Row],[Koda G/K]],Stroški_po_elementih[Datum računa],\">=\"&O$3,Stroški_po_elementih[Datum računa],\"<=\"&O$4)+SUMIFS(Drugo[Preverite količino],Drugo[Koda G/K],Mesečni_znesek_povzetek[[#This Row],[Koda G/K]],Drugo[Inicializirana je zahteva za preverjanje datuma],\">=\"&DATEVALUE(\" 1 \"&Mesečni_znesek_povzetek[[#Headers],[December]]&_LETO),Drugo[Inicializirana je zahteva za preverjanje datuma],\"<=\"&O$4)","v":{"v":0,"d":"0.00 €"}},{"$f":"SUM(Mesečni_znesek_povzetek[[#This Row],[Januar]:[December]])","v":{"v":0,"d":"0.00 €"}}]
[null,3000,"Tiskalniki",{"$f":"SUMIFS(Stroški_po_elementih[Preverite količino],Stroški_po_elementih[Koda G/K],Mesečni_znesek_povzetek[[#This Row],[Koda G/K]],Stroški_po_elementih[Datum računa],\">=\"&D$3,Stroški_po_elementih[Datum računa],\"<=\"&D$4)+SUMIFS(Drugo[Preverite količino],Drugo[Koda G/K],Mesečni_znesek_povzetek[[#This Row],[Koda G/K]],Drugo[Inicializirana je zahteva za preverjanje datuma],\">=\"&DATEVALUE(\" 1 \"&Mesečni_znesek_povzetek[[#Headers],[Januar]]&_LETO),Drugo[Inicializirana je zahteva za preverjanje datuma],\"<=\"&D$4)","v":{"v":0,"d":"0.00 €"}},{"$f":"SUMIFS(Stroški_po_elementih[Preverite količino],Stroški_po_elementih[Koda G/K],Mesečni_znesek_povzetek[[#This Row],[Koda G/K]],Stroški_po_elementih[Datum računa],\">=\"&E$3,Stroški_po_elementih[Datum računa],\"<=\"&E$4)+SUMIFS(Drugo[Preverite količino],Drugo[Koda G/K],Mesečni_znesek_povzetek[[#This Row],[Koda G/K]],Drugo[Inicializirana je zahteva za preverjanje datuma],\">=\"&DATEVALUE(\" 1 \"&Mesečni_znesek_povzetek[[#Headers],[Februar]]&_LETO),Drugo[Inicializirana je zahteva za preverjanje datuma],\"<=\"&E$4)","v":{"v":0,"d":"0.00 €"}},{"$f":"SUMIFS(Stroški_po_elementih[Preverite količino],Stroški_po_elementih[Koda G/K],Mesečni_znesek_povzetek[[#This Row],[Koda G/K]],Stroški_po_elementih[Datum računa],\">=\"&F$3,Stroški_po_elementih[Datum računa],\"<=\"&F$4)+SUMIFS(Drugo[Preverite količino],Drugo[Koda G/K],Mesečni_znesek_povzetek[[#This Row],[Koda G/K]],Drugo[Inicializirana je zahteva za preverjanje datuma],\">=\"&DATEVALUE(\" 1 \"&Mesečni_znesek_povzetek[[#Headers],[Marec]]&_LETO),Drugo[Inicializirana je zahteva za preverjanje datuma],\"<=\"&F$4)","v":{"v":0,"d":"0.00 €"}},{"$f":"SUMIFS(Stroški_po_elementih[Preverite količino],Stroški_po_elementih[Koda G/K],Mesečni_znesek_povzetek[[#This Row],[Koda G/K]],Stroški_po_elementih[Datum računa],\">=\"&G$3,Stroški_po_elementih[Datum računa],\"<=\"&G$4)+SUMIFS(Drugo[Preverite količino],Drugo[Koda G/K],Mesečni_znesek_povzetek[[#This Row],[Koda G/K]],Drugo[Inicializirana je zahteva za preverjanje datuma],\">=\"&DATEVALUE(\" 1 \"&Mesečni_znesek_povzetek[[#Headers],[Apr]]&_LETO),Drugo[Inicializirana je zahteva za preverjanje datuma],\"<=\"&G$4)","v":{"v":0,"d":"0.00 €"}},{"$f":"SUMIFS(Stroški_po_elementih[Preverite količino],Stroški_po_elementih[Koda G/K],Mesečni_znesek_povzetek[[#This Row],[Koda G/K]],Stroški_po_elementih[Datum računa],\">=\"&H$3,Stroški_po_elementih[Datum računa],\"<=\"&H$4)+SUMIFS(Drugo[Preverite količino],Drugo[Koda G/K],Mesečni_znesek_povzetek[[#This Row],[Koda G/K]],Drugo[Inicializirana je zahteva za preverjanje datuma],\">=\"&DATEVALUE(\" 1 \"&Mesečni_znesek_povzetek[[#Headers],[Maj]]&_LETO),Drugo[Inicializirana je zahteva za preverjanje datuma],\"<=\"&H$4)","v":{"v":0,"d":"0.00 €"}},{"$f":"SUMIFS(Stroški_po_elementih[Preverite količino],Stroški_po_elementih[Koda G/K],Mesečni_znesek_povzetek[[#This Row],[Koda G/K]],Stroški_po_elementih[Datum računa],\">=\"&I$3,Stroški_po_elementih[Datum računa],\"<=\"&I$4)+SUMIFS(Drugo[Preverite količino],Drugo[Koda G/K],Mesečni_znesek_povzetek[[#This Row],[Koda G/K]],Drugo[Inicializirana je zahteva za preverjanje datuma],\">=\"&DATEVALUE(\" 1 \"&Mesečni_znesek_povzetek[[#Headers],[Jun]]&_LETO),Drugo[Inicializirana je zahteva za preverjanje datuma],\"<=\"&I$4)","v":{"v":0,"d":"0.00 €"}},{"$f":"SUMIFS(Stroški_po_elementih[Preverite količino],Stroški_po_elementih[Koda G/K],Mesečni_znesek_povzetek[[#This Row],[Koda G/K]],Stroški_po_elementih[Datum računa],\">=\"&J$3,Stroški_po_elementih[Datum računa],\"<=\"&J$4)+SUMIFS(Drugo[Preverite količino],Drugo[Koda G/K],Mesečni_znesek_povzetek[[#This Row],[Koda G/K]],Drugo[Inicializirana je zahteva za preverjanje datuma],\">=\"&DATEVALUE(\" 1 \"&Mesečni_znesek_povzetek[[#Headers],[Julij]]&_LETO),Drugo[Inicializirana je zahteva za preverjanje datuma],\"<=\"&J$4)","v":{"v":0,"d":"0.00 €"}},{"$f":"SUMIFS(Stroški_po_elementih[Preverite količino],Stroški_po_elementih[Koda G/K],Mesečni_znesek_povzetek[[#This Row],[Koda G/K]],Stroški_po_elementih[Datum računa],\">=\"&K$3,Stroški_po_elementih[Datum računa],\"<=\"&K$4)+SUMIFS(Drugo[Preverite količino],Drugo[Koda G/K],Mesečni_znesek_povzetek[[#This Row],[Koda G/K]],Drugo[Inicializirana je zahteva za preverjanje datuma],\">=\"&DATEVALUE(\" 1 \"&Mesečni_znesek_povzetek[[#Headers],[Avgust]]&_LETO),Drugo[Inicializirana je zahteva za preverjanje datuma],\"<=\"&K$4)","v":{"v":0,"d":"0.00 €"}},{"$f":"SUMIFS(Stroški_po_elementih[Preverite količino],Stroški_po_elementih[Koda G/K],Mesečni_znesek_povzetek[[#This Row],[Koda G/K]],Stroški_po_elementih[Datum računa],\">=\"&L$3,Stroški_po_elementih[Datum računa],\"<=\"&L$4)+SUMIFS(Drugo[Preverite količino],Drugo[Koda G/K],Mesečni_znesek_povzetek[[#This Row],[Koda G/K]],Drugo[Inicializirana je zahteva za preverjanje datuma],\">=\"&DATEVALUE(\" 1 \"&Mesečni_znesek_povzetek[[#Headers],[September]]&_LETO),Drugo[Inicializirana je zahteva za preverjanje datuma],\"<=\"&L$4)","v":{"v":0,"d":"0.00 €"}},{"$f":"SUMIFS(Stroški_po_elementih[Preverite količino],Stroški_po_elementih[Koda G/K],Mesečni_znesek_povzetek[[#This Row],[Koda G/K]],Stroški_po_elementih[Datum računa],\">=\"&M$3,Stroški_po_elementih[Datum računa],\"<=\"&M$4)+SUMIFS(Drugo[Preverite količino],Drugo[Koda G/K],Mesečni_znesek_povzetek[[#This Row],[Koda G/K]],Drugo[Inicializirana je zahteva za preverjanje datuma],\">=\"&DATEVALUE(\" 1 \"&Mesečni_znesek_povzetek[[#Headers],[Oktober]]&_LETO),Drugo[Inicializirana je zahteva za preverjanje datuma],\"<=\"&M$4)","v":{"v":0,"d":"0.00 €"}},{"$f":"SUMIFS(Stroški_po_elementih[Preverite količino],Stroški_po_elementih[Koda G/K],Mesečni_znesek_povzetek[[#This Row],[Koda G/K]],Stroški_po_elementih[Datum računa],\">=\"&N$3,Stroški_po_elementih[Datum računa],\"<=\"&N$4)+SUMIFS(Drugo[Preverite količino],Drugo[Koda G/K],Mesečni_znesek_povzetek[[#This Row],[Koda G/K]],Drugo[Inicializirana je zahteva za preverjanje datuma],\">=\"&DATEVALUE(\" 1 \"&Mesečni_znesek_povzetek[[#Headers],[November]]&_LETO),Drugo[Inicializirana je zahteva za preverjanje datuma],\"<=\"&N$4)","v":{"v":0,"d":"0.00 €"}},{"$f":"SUMIFS(Stroški_po_elementih[Preverite količino],Stroški_po_elementih[Koda G/K],Mesečni_znesek_povzetek[[#This Row],[Koda G/K]],Stroški_po_elementih[Datum računa],\">=\"&O$3,Stroški_po_elementih[Datum računa],\"<=\"&O$4)+SUMIFS(Drugo[Preverite količino],Drugo[Koda G/K],Mesečni_znesek_povzetek[[#This Row],[Koda G/K]],Drugo[Inicializirana je zahteva za preverjanje datuma],\">=\"&DATEVALUE(\" 1 \"&Mesečni_znesek_povzetek[[#Headers],[December]]&_LETO),Drugo[Inicializirana je zahteva za preverjanje datuma],\"<=\"&O$4)","v":{"v":0,"d":"0.00 €"}},{"$f":"SUM(Mesečni_znesek_povzetek[[#This Row],[Januar]:[December]])","v":{"v":0,"d":"0.00 €"}}]
[null,4000,"Stroški strežnika",{"$f":"SUMIFS(Stroški_po_elementih[Preverite količino],Stroški_po_elementih[Koda G/K],Mesečni_znesek_povzetek[[#This Row],[Koda G/K]],Stroški_po_elementih[Datum računa],\">=\"&D$3,Stroški_po_elementih[Datum računa],\"<=\"&D$4)+SUMIFS(Drugo[Preverite količino],Drugo[Koda G/K],Mesečni_znesek_povzetek[[#This Row],[Koda G/K]],Drugo[Inicializirana je zahteva za preverjanje datuma],\">=\"&DATEVALUE(\" 1 \"&Mesečni_znesek_povzetek[[#Headers],[Januar]]&_LETO),Drugo[Inicializirana je zahteva za preverjanje datuma],\"<=\"&D$4)","v":{"v":0,"d":"0.00 €"}},{"$f":"SUMIFS(Stroški_po_elementih[Preverite količino],Stroški_po_elementih[Koda G/K],Mesečni_znesek_povzetek[[#This Row],[Koda G/K]],Stroški_po_elementih[Datum računa],\">=\"&E$3,Stroški_po_elementih[Datum računa],\"<=\"&E$4)+SUMIFS(Drugo[Preverite količino],Drugo[Koda G/K],Mesečni_znesek_povzetek[[#This Row],[Koda G/K]],Drugo[Inicializirana je zahteva za preverjanje datuma],\">=\"&DATEVALUE(\" 1 \"&Mesečni_znesek_povzetek[[#Headers],[Februar]]&_LETO),Drugo[Inicializirana je zahteva za preverjanje datuma],\"<=\"&E$4)","v":{"v":0,"d":"0.00 €"}},{"$f":"SUMIFS(Stroški_po_elementih[Preverite količino],Stroški_po_elementih[Koda G/K],Mesečni_znesek_povzetek[[#This Row],[Koda G/K]],Stroški_po_elementih[Datum računa],\">=\"&F$3,Stroški_po_elementih[Datum računa],\"<=\"&F$4)+SUMIFS(Drugo[Preverite količino],Drugo[Koda G/K],Mesečni_znesek_povzetek[[#This Row],[Koda G/K]],Drugo[Inicializirana je zahteva za preverjanje datuma],\">=\"&DATEVALUE(\" 1 \"&Mesečni_znesek_povzetek[[#Headers],[Marec]]&_LETO),Drugo[Inicializirana je zahteva za preverjanje datuma],\"<=\"&F$4)","v":{"v":0,"d":"0.00 €"}},{"$f":"SUMIFS(Stroški_po_elementih[Preverite količino],Stroški_po_elementih[Koda G/K],Mesečni_znesek_povzetek[[#This Row],[Koda G/K]],Stroški_po_elementih[Datum računa],\">=\"&G$3,Stroški_po_elementih[Datum računa],\"<=\"&G$4)+SUMIFS(Drugo[Preverite količino],Drugo[Koda G/K],Mesečni_znesek_povzetek[[#This Row],[Koda G/K]],Drugo[Inicializirana je zahteva za preverjanje datuma],\">=\"&DATEVALUE(\" 1 \"&Mesečni_znesek_povzetek[[#Headers],[Apr]]&_LETO),Drugo[Inicializirana je zahteva za preverjanje datuma],\"<=\"&G$4)","v":{"v":0,"d":"0.00 €"}},{"$f":"SUMIFS(Stroški_po_elementih[Preverite količino],Stroški_po_elementih[Koda G/K],Mesečni_znesek_povzetek[[#This Row],[Koda G/K]],Stroški_po_elementih[Datum računa],\">=\"&H$3,Stroški_po_elementih[Datum računa],\"<=\"&H$4)+SUMIFS(Drugo[Preverite količino],Drugo[Koda G/K],Mesečni_znesek_povzetek[[#This Row],[Koda G/K]],Drugo[Inicializirana je zahteva za preverjanje datuma],\">=\"&DATEVALUE(\" 1 \"&Mesečni_znesek_povzetek[[#Headers],[Maj]]&_LETO),Drugo[Inicializirana je zahteva za preverjanje datuma],\"<=\"&H$4)","v":{"v":0,"d":"0.00 €"}},{"$f":"SUMIFS(Stroški_po_elementih[Preverite količino],Stroški_po_elementih[Koda G/K],Mesečni_znesek_povzetek[[#This Row],[Koda G/K]],Stroški_po_elementih[Datum računa],\">=\"&I$3,Stroški_po_elementih[Datum računa],\"<=\"&I$4)+SUMIFS(Drugo[Preverite količino],Drugo[Koda G/K],Mesečni_znesek_povzetek[[#This Row],[Koda G/K]],Drugo[Inicializirana je zahteva za preverjanje datuma],\">=\"&DATEVALUE(\" 1 \"&Mesečni_znesek_povzetek[[#Headers],[Jun]]&_LETO),Drugo[Inicializirana je zahteva za preverjanje datuma],\"<=\"&I$4)","v":{"v":0,"d":"0.00 €"}},{"$f":"SUMIFS(Stroški_po_elementih[Preverite količino],Stroški_po_elementih[Koda G/K],Mesečni_znesek_povzetek[[#This Row],[Koda G/K]],Stroški_po_elementih[Datum računa],\">=\"&J$3,Stroški_po_elementih[Datum računa],\"<=\"&J$4)+SUMIFS(Drugo[Preverite količino],Drugo[Koda G/K],Mesečni_znesek_povzetek[[#This Row],[Koda G/K]],Drugo[Inicializirana je zahteva za preverjanje datuma],\">=\"&DATEVALUE(\" 1 \"&Mesečni_znesek_povzetek[[#Headers],[Julij]]&_LETO),Drugo[Inicializirana je zahteva za preverjanje datuma],\"<=\"&J$4)","v":{"v":0,"d":"0.00 €"}},{"$f":"SUMIFS(Stroški_po_elementih[Preverite količino],Stroški_po_elementih[Koda G/K],Mesečni_znesek_povzetek[[#This Row],[Koda G/K]],Stroški_po_elementih[Datum računa],\">=\"&K$3,Stroški_po_elementih[Datum računa],\"<=\"&K$4)+SUMIFS(Drugo[Preverite količino],Drugo[Koda G/K],Mesečni_znesek_povzetek[[#This Row],[Koda G/K]],Drugo[Inicializirana je zahteva za preverjanje datuma],\">=\"&DATEVALUE(\" 1 \"&Mesečni_znesek_povzetek[[#Headers],[Avgust]]&_LETO),Drugo[Inicializirana je zahteva za preverjanje datuma],\"<=\"&K$4)","v":{"v":0,"d":"0.00 €"}},{"$f":"SUMIFS(Stroški_po_elementih[Preverite količino],Stroški_po_elementih[Koda G/K],Mesečni_znesek_povzetek[[#This Row],[Koda G/K]],Stroški_po_elementih[Datum računa],\">=\"&L$3,Stroški_po_elementih[Datum računa],\"<=\"&L$4)+SUMIFS(Drugo[Preverite količino],Drugo[Koda G/K],Mesečni_znesek_povzetek[[#This Row],[Koda G/K]],Drugo[Inicializirana je zahteva za preverjanje datuma],\">=\"&DATEVALUE(\" 1 \"&Mesečni_znesek_povzetek[[#Headers],[September]]&_LETO),Drugo[Inicializirana je zahteva za preverjanje datuma],\"<=\"&L$4)","v":{"v":0,"d":"0.00 €"}},{"$f":"SUMIFS(Stroški_po_elementih[Preverite količino],Stroški_po_elementih[Koda G/K],Mesečni_znesek_povzetek[[#This Row],[Koda G/K]],Stroški_po_elementih[Datum računa],\">=\"&M$3,Stroški_po_elementih[Datum računa],\"<=\"&M$4)+SUMIFS(Drugo[Preverite količino],Drugo[Koda G/K],Mesečni_znesek_povzetek[[#This Row],[Koda G/K]],Drugo[Inicializirana je zahteva za preverjanje datuma],\">=\"&DATEVALUE(\" 1 \"&Mesečni_znesek_povzetek[[#Headers],[Oktober]]&_LETO),Drugo[Inicializirana je zahteva za preverjanje datuma],\"<=\"&M$4)","v":{"v":0,"d":"0.00 €"}},{"$f":"SUMIFS(Stroški_po_elementih[Preverite količino],Stroški_po_elementih[Koda G/K],Mesečni_znesek_povzetek[[#This Row],[Koda G/K]],Stroški_po_elementih[Datum računa],\">=\"&N$3,Stroški_po_elementih[Datum računa],\"<=\"&N$4)+SUMIFS(Drugo[Preverite količino],Drugo[Koda G/K],Mesečni_znesek_povzetek[[#This Row],[Koda G/K]],Drugo[Inicializirana je zahteva za preverjanje datuma],\">=\"&DATEVALUE(\" 1 \"&Mesečni_znesek_povzetek[[#Headers],[November]]&_LETO),Drugo[Inicializirana je zahteva za preverjanje datuma],\"<=\"&N$4)","v":{"v":0,"d":"0.00 €"}},{"$f":"SUMIFS(Stroški_po_elementih[Preverite količino],Stroški_po_elementih[Koda G/K],Mesečni_znesek_povzetek[[#This Row],[Koda G/K]],Stroški_po_elementih[Datum računa],\">=\"&O$3,Stroški_po_elementih[Datum računa],\"<=\"&O$4)+SUMIFS(Drugo[Preverite količino],Drugo[Koda G/K],Mesečni_znesek_povzetek[[#This Row],[Koda G/K]],Drugo[Inicializirana je zahteva za preverjanje datuma],\">=\"&DATEVALUE(\" 1 \"&Mesečni_znesek_povzetek[[#Headers],[December]]&_LETO),Drugo[Inicializirana je zahteva za preverjanje datuma],\"<=\"&O$4)","v":{"v":0,"d":"0.00 €"}},{"$f":"SUM(Mesečni_znesek_povzetek[[#This Row],[Januar]:[December]])","v":{"v":0,"d":"0.00 €"}}]
[null,5000,"Zaloge",{"$f":"SUMIFS(Stroški_po_elementih[Preverite količino],Stroški_po_elementih[Koda G/K],Mesečni_znesek_povzetek[[#This Row],[Koda G/K]],Stroški_po_elementih[Datum računa],\">=\"&D$3,Stroški_po_elementih[Datum računa],\"<=\"&D$4)+SUMIFS(Drugo[Preverite količino],Drugo[Koda G/K],Mesečni_znesek_povzetek[[#This Row],[Koda G/K]],Drugo[Inicializirana je zahteva za preverjanje datuma],\">=\"&DATEVALUE(\" 1 \"&Mesečni_znesek_povzetek[[#Headers],[Januar]]&_LETO),Drugo[Inicializirana je zahteva za preverjanje datuma],\"<=\"&D$4)","v":{"v":0,"d":"0.00 €"}},{"$f":"SUMIFS(Stroški_po_elementih[Preverite količino],Stroški_po_elementih[Koda G/K],Mesečni_znesek_povzetek[[#This Row],[Koda G/K]],Stroški_po_elementih[Datum računa],\">=\"&E$3,Stroški_po_elementih[Datum računa],\"<=\"&E$4)+SUMIFS(Drugo[Preverite količino],Drugo[Koda G/K],Mesečni_znesek_povzetek[[#This Row],[Koda G/K]],Drugo[Inicializirana je zahteva za preverjanje datuma],\">=\"&DATEVALUE(\" 1 \"&Mesečni_znesek_povzetek[[#Headers],[Februar]]&_LETO),Drugo[Inicializirana je zahteva za preverjanje datuma],\"<=\"&E$4)","v":{"v":0,"d":"0.00 €"}},{"$f":"SUMIFS(Stroški_po_elementih[Preverite količino],Stroški_po_elementih[Koda G/K],Mesečni_znesek_povzetek[[#This Row],[Koda G/K]],Stroški_po_elementih[Datum računa],\">=\"&F$3,Stroški_po_elementih[Datum računa],\"<=\"&F$4)+SUMIFS(Drugo[Preverite količino],Drugo[Koda G/K],Mesečni_znesek_povzetek[[#This Row],[Koda G/K]],Drugo[Inicializirana je zahteva za preverjanje datuma],\">=\"&DATEVALUE(\" 1 \"&Mesečni_znesek_povzetek[[#Headers],[Marec]]&_LETO),Drugo[Inicializirana je zahteva za preverjanje datuma],\"<=\"&F$4)","v":{"v":0,"d":"0.00 €"}},{"$f":"SUMIFS(Stroški_po_elementih[Preverite količino],Stroški_po_elementih[Koda G/K],Mesečni_znesek_povzetek[[#This Row],[Koda G/K]],Stroški_po_elementih[Datum računa],\">=\"&G$3,Stroški_po_elementih[Datum računa],\"<=\"&G$4)+SUMIFS(Drugo[Preverite količino],Drugo[Koda G/K],Mesečni_znesek_povzetek[[#This Row],[Koda G/K]],Drugo[Inicializirana je zahteva za preverjanje datuma],\">=\"&DATEVALUE(\" 1 \"&Mesečni_znesek_povzetek[[#Headers],[Apr]]&_LETO),Drugo[Inicializirana je zahteva za preverjanje datuma],\"<=\"&G$4)","v":{"v":0,"d":"0.00 €"}},{"$f":"SUMIFS(Stroški_po_elementih[Preverite količino],Stroški_po_elementih[Koda G/K],Mesečni_znesek_povzetek[[#This Row],[Koda G/K]],Stroški_po_elementih[Datum računa],\">=\"&H$3,Stroški_po_elementih[Datum računa],\"<=\"&H$4)+SUMIFS(Drugo[Preverite količino],Drugo[Koda G/K],Mesečni_znesek_povzetek[[#This Row],[Koda G/K]],Drugo[Inicializirana je zahteva za preverjanje datuma],\">=\"&DATEVALUE(\" 1 \"&Mesečni_znesek_povzetek[[#Headers],[Maj]]&_LETO),Drugo[Inicializirana je zahteva za preverjanje datuma],\"<=\"&H$4)","v":{"v":0,"d":"0.00 €"}},{"$f":"SUMIFS(Stroški_po_elementih[Preverite količino],Stroški_po_elementih[Koda G/K],Mesečni_znesek_povzetek[[#This Row],[Koda G/K]],Stroški_po_elementih[Datum računa],\">=\"&I$3,Stroški_po_elementih[Datum računa],\"<=\"&I$4)+SUMIFS(Drugo[Preverite količino],Drugo[Koda G/K],Mesečni_znesek_povzetek[[#This Row],[Koda G/K]],Drugo[Inicializirana je zahteva za preverjanje datuma],\">=\"&DATEVALUE(\" 1 \"&Mesečni_znesek_povzetek[[#Headers],[Jun]]&_LETO),Drugo[Inicializirana je zahteva za preverjanje datuma],\"<=\"&I$4)","v":{"v":0,"d":"0.00 €"}},{"$f":"SUMIFS(Stroški_po_elementih[Preverite količino],Stroški_po_elementih[Koda G/K],Mesečni_znesek_povzetek[[#This Row],[Koda G/K]],Stroški_po_elementih[Datum računa],\">=\"&J$3,Stroški_po_elementih[Datum računa],\"<=\"&J$4)+SUMIFS(Drugo[Preverite količino],Drugo[Koda G/K],Mesečni_znesek_povzetek[[#This Row],[Koda G/K]],Drugo[Inicializirana je zahteva za preverjanje datuma],\">=\"&DATEVALUE(\" 1 \"&Mesečni_znesek_povzetek[[#Headers],[Julij]]&_LETO),Drugo[Inicializirana je zahteva za preverjanje datuma],\"<=\"&J$4)","v":{"v":0,"d":"0.00 €"}},{"$f":"SUMIFS(Stroški_po_elementih[Preverite količino],Stroški_po_elementih[Koda G/K],Mesečni_znesek_povzetek[[#This Row],[Koda G/K]],Stroški_po_elementih[Datum računa],\">=\"&K$3,Stroški_po_elementih[Datum računa],\"<=\"&K$4)+SUMIFS(Drugo[Preverite količino],Drugo[Koda G/K],Mesečni_znesek_povzetek[[#This Row],[Koda G/K]],Drugo[Inicializirana je zahteva za preverjanje datuma],\">=\"&DATEVALUE(\" 1 \"&Mesečni_znesek_povzetek[[#Headers],[Avgust]]&_LETO),Drugo[Inicializirana je zahteva za preverjanje datuma],\"<=\"&K$4)","v":{"v":0,"d":"0.00 €"}},{"$f":"SUMIFS(Stroški_po_elementih[Preverite količino],Stroški_po_elementih[Koda G/K],Mesečni_znesek_povzetek[[#This Row],[Koda G/K]],Stroški_po_elementih[Datum računa],\">=\"&L$3,Stroški_po_elementih[Datum računa],\"<=\"&L$4)+SUMIFS(Drugo[Preverite količino],Drugo[Koda G/K],Mesečni_znesek_povzetek[[#This Row],[Koda G/K]],Drugo[Inicializirana je zahteva za preverjanje datuma],\">=\"&DATEVALUE(\" 1 \"&Mesečni_znesek_povzetek[[#Headers],[September]]&_LETO),Drugo[Inicializirana je zahteva za preverjanje datuma],\"<=\"&L$4)","v":{"v":0,"d":"0.00 €"}},{"$f":"SUMIFS(Stroški_po_elementih[Preverite količino],Stroški_po_elementih[Koda G/K],Mesečni_znesek_povzetek[[#This Row],[Koda G/K]],Stroški_po_elementih[Datum računa],\">=\"&M$3,Stroški_po_elementih[Datum računa],\"<=\"&M$4)+SUMIFS(Drugo[Preverite količino],Drugo[Koda G/K],Mesečni_znesek_povzetek[[#This Row],[Koda G/K]],Drugo[Inicializirana je zahteva za preverjanje datuma],\">=\"&DATEVALUE(\" 1 \"&Mesečni_znesek_povzetek[[#Headers],[Oktober]]&_LETO),Drugo[Inicializirana je zahteva za preverjanje datuma],\"<=\"&M$4)","v":{"v":0,"d":"0.00 €"}},{"$f":"SUMIFS(Stroški_po_elementih[Preverite količino],Stroški_po_elementih[Koda G/K],Mesečni_znesek_povzetek[[#This Row],[Koda G/K]],Stroški_po_elementih[Datum računa],\">=\"&N$3,Stroški_po_elementih[Datum računa],\"<=\"&N$4)+SUMIFS(Drugo[Preverite količino],Drugo[Koda G/K],Mesečni_znesek_povzetek[[#This Row],[Koda G/K]],Drugo[Inicializirana je zahteva za preverjanje datuma],\">=\"&DATEVALUE(\" 1 \"&Mesečni_znesek_povzetek[[#Headers],[November]]&_LETO),Drugo[Inicializirana je zahteva za preverjanje datuma],\"<=\"&N$4)","v":{"v":0,"d":"0.00 €"}},{"$f":"SUMIFS(Stroški_po_elementih[Preverite količino],Stroški_po_elementih[Koda G/K],Mesečni_znesek_povzetek[[#This Row],[Koda G/K]],Stroški_po_elementih[Datum računa],\">=\"&O$3,Stroški_po_elementih[Datum računa],\"<=\"&O$4)+SUMIFS(Drugo[Preverite količino],Drugo[Koda G/K],Mesečni_znesek_povzetek[[#This Row],[Koda G/K]],Drugo[Inicializirana je zahteva za preverjanje datuma],\">=\"&DATEVALUE(\" 1 \"&Mesečni_znesek_povzetek[[#Headers],[December]]&_LETO),Drugo[Inicializirana je zahteva za preverjanje datuma],\"<=\"&O$4)","v":{"v":0,"d":"0.00 €"}},{"$f":"SUM(Mesečni_znesek_povzetek[[#This Row],[Januar]:[December]])","v":{"v":0,"d":"0.00 €"}}]
[null,6000,"Stroški odjemalca",{"$f":"SUMIFS(Stroški_po_elementih[Preverite količino],Stroški_po_elementih[Koda G/K],Mesečni_znesek_povzetek[[#This Row],[Koda G/K]],Stroški_po_elementih[Datum računa],\">=\"&D$3,Stroški_po_elementih[Datum računa],\"<=\"&D$4)+SUMIFS(Drugo[Preverite količino],Drugo[Koda G/K],Mesečni_znesek_povzetek[[#This Row],[Koda G/K]],Drugo[Inicializirana je zahteva za preverjanje datuma],\">=\"&DATEVALUE(\" 1 \"&Mesečni_znesek_povzetek[[#Headers],[Januar]]&_LETO),Drugo[Inicializirana je zahteva za preverjanje datuma],\"<=\"&D$4)","v":{"v":0,"d":"0.00 €"}},{"$f":"SUMIFS(Stroški_po_elementih[Preverite količino],Stroški_po_elementih[Koda G/K],Mesečni_znesek_povzetek[[#This Row],[Koda G/K]],Stroški_po_elementih[Datum računa],\">=\"&E$3,Stroški_po_elementih[Datum računa],\"<=\"&E$4)+SUMIFS(Drugo[Preverite količino],Drugo[Koda G/K],Mesečni_znesek_povzetek[[#This Row],[Koda G/K]],Drugo[Inicializirana je zahteva za preverjanje datuma],\">=\"&DATEVALUE(\" 1 \"&Mesečni_znesek_povzetek[[#Headers],[Februar]]&_LETO),Drugo[Inicializirana je zahteva za preverjanje datuma],\"<=\"&E$4)","v":{"v":0,"d":"0.00 €"}},{"$f":"SUMIFS(Stroški_po_elementih[Preverite količino],Stroški_po_elementih[Koda G/K],Mesečni_znesek_povzetek[[#This Row],[Koda G/K]],Stroški_po_elementih[Datum računa],\">=\"&F$3,Stroški_po_elementih[Datum računa],\"<=\"&F$4)+SUMIFS(Drugo[Preverite količino],Drugo[Koda G/K],Mesečni_znesek_povzetek[[#This Row],[Koda G/K]],Drugo[Inicializirana je zahteva za preverjanje datuma],\">=\"&DATEVALUE(\" 1 \"&Mesečni_znesek_povzetek[[#Headers],[Marec]]&_LETO),Drugo[Inicializirana je zahteva za preverjanje datuma],\"<=\"&F$4)","v":{"v":0,"d":"0.00 €"}},{"$f":"SUMIFS(Stroški_po_elementih[Preverite količino],Stroški_po_elementih[Koda G/K],Mesečni_znesek_povzetek[[#This Row],[Koda G/K]],Stroški_po_elementih[Datum računa],\">=\"&G$3,Stroški_po_elementih[Datum računa],\"<=\"&G$4)+SUMIFS(Drugo[Preverite količino],Drugo[Koda G/K],Mesečni_znesek_povzetek[[#This Row],[Koda G/K]],Drugo[Inicializirana je zahteva za preverjanje datuma],\">=\"&DATEVALUE(\" 1 \"&Mesečni_znesek_povzetek[[#Headers],[Apr]]&_LETO),Drugo[Inicializirana je zahteva za preverjanje datuma],\"<=\"&G$4)","v":{"v":0,"d":"0.00 €"}},{"$f":"SUMIFS(Stroški_po_elementih[Preverite količino],Stroški_po_elementih[Koda G/K],Mesečni_znesek_povzetek[[#This Row],[Koda G/K]],Stroški_po_elementih[Datum računa],\">=\"&H$3,Stroški_po_elementih[Datum računa],\"<=\"&H$4)+SUMIFS(Drugo[Preverite količino],Drugo[Koda G/K],Mesečni_znesek_povzetek[[#This Row],[Koda G/K]],Drugo[Inicializirana je zahteva za preverjanje datuma],\">=\"&DATEVALUE(\" 1 \"&Mesečni_znesek_povzetek[[#Headers],[Maj]]&_LETO),Drugo[Inicializirana je zahteva za preverjanje datuma],\"<=\"&H$4)","v":{"v":0,"d":"0.00 €"}},{"$f":"SUMIFS(Stroški_po_elementih[Preverite količino],Stroški_po_elementih[Koda G/K],Mesečni_znesek_povzetek[[#This Row],[Koda G/K]],Stroški_po_elementih[Datum računa],\">=\"&I$3,Stroški_po_elementih[Datum računa],\"<=\"&I$4)+SUMIFS(Drugo[Preverite količino],Drugo[Koda G/K],Mesečni_znesek_povzetek[[#This Row],[Koda G/K]],Drugo[Inicializirana je zahteva za preverjanje datuma],\">=\"&DATEVALUE(\" 1 \"&Mesečni_znesek_povzetek[[#Headers],[Jun]]&_LETO),Drugo[Inicializirana je zahteva za preverjanje datuma],\"<=\"&I$4)","v":{"v":0,"d":"0.00 €"}},{"$f":"SUMIFS(Stroški_po_elementih[Preverite količino],Stroški_po_elementih[Koda G/K],Mesečni_znesek_povzetek[[#This Row],[Koda G/K]],Stroški_po_elementih[Datum računa],\">=\"&J$3,Stroški_po_elementih[Datum računa],\"<=\"&J$4)+SUMIFS(Drugo[Preverite količino],Drugo[Koda G/K],Mesečni_znesek_povzetek[[#This Row],[Koda G/K]],Drugo[Inicializirana je zahteva za preverjanje datuma],\">=\"&DATEVALUE(\" 1 \"&Mesečni_znesek_povzetek[[#Headers],[Julij]]&_LETO),Drugo[Inicializirana je zahteva za preverjanje datuma],\"<=\"&J$4)","v":{"v":0,"d":"0.00 €"}},{"$f":"SUMIFS(Stroški_po_elementih[Preverite količino],Stroški_po_elementih[Koda G/K],Mesečni_znesek_povzetek[[#This Row],[Koda G/K]],Stroški_po_elementih[Datum računa],\">=\"&K$3,Stroški_po_elementih[Datum računa],\"<=\"&K$4)+SUMIFS(Drugo[Preverite količino],Drugo[Koda G/K],Mesečni_znesek_povzetek[[#This Row],[Koda G/K]],Drugo[Inicializirana je zahteva za preverjanje datuma],\">=\"&DATEVALUE(\" 1 \"&Mesečni_znesek_povzetek[[#Headers],[Avgust]]&_LETO),Drugo[Inicializirana je zahteva za preverjanje datuma],\"<=\"&K$4)","v":{"v":0,"d":"0.00 €"}},{"$f":"SUMIFS(Stroški_po_elementih[Preverite količino],Stroški_po_elementih[Koda G/K],Mesečni_znesek_povzetek[[#This Row],[Koda G/K]],Stroški_po_elementih[Datum računa],\">=\"&L$3,Stroški_po_elementih[Datum računa],\"<=\"&L$4)+SUMIFS(Drugo[Preverite količino],Drugo[Koda G/K],Mesečni_znesek_povzetek[[#This Row],[Koda G/K]],Drugo[Inicializirana je zahteva za preverjanje datuma],\">=\"&DATEVALUE(\" 1 \"&Mesečni_znesek_povzetek[[#Headers],[September]]&_LETO),Drugo[Inicializirana je zahteva za preverjanje datuma],\"<=\"&L$4)","v":{"v":0,"d":"0.00 €"}},{"$f":"SUMIFS(Stroški_po_elementih[Preverite količino],Stroški_po_elementih[Koda G/K],Mesečni_znesek_povzetek[[#This Row],[Koda G/K]],Stroški_po_elementih[Datum računa],\">=\"&M$3,Stroški_po_elementih[Datum računa],\"<=\"&M$4)+SUMIFS(Drugo[Preverite količino],Drugo[Koda G/K],Mesečni_znesek_povzetek[[#This Row],[Koda G/K]],Drugo[Inicializirana je zahteva za preverjanje datuma],\">=\"&DATEVALUE(\" 1 \"&Mesečni_znesek_povzetek[[#Headers],[Oktober]]&_LETO),Drugo[Inicializirana je zahteva za preverjanje datuma],\"<=\"&M$4)","v":{"v":0,"d":"0.00 €"}},{"$f":"SUMIFS(Stroški_po_elementih[Preverite količino],Stroški_po_elementih[Koda G/K],Mesečni_znesek_povzetek[[#This Row],[Koda G/K]],Stroški_po_elementih[Datum računa],\">=\"&N$3,Stroški_po_elementih[Datum računa],\"<=\"&N$4)+SUMIFS(Drugo[Preverite količino],Drugo[Koda G/K],Mesečni_znesek_povzetek[[#This Row],[Koda G/K]],Drugo[Inicializirana je zahteva za preverjanje datuma],\">=\"&DATEVALUE(\" 1 \"&Mesečni_znesek_povzetek[[#Headers],[November]]&_LETO),Drugo[Inicializirana je zahteva za preverjanje datuma],\"<=\"&N$4)","v":{"v":0,"d":"0.00 €"}},{"$f":"SUMIFS(Stroški_po_elementih[Preverite količino],Stroški_po_elementih[Koda G/K],Mesečni_znesek_povzetek[[#This Row],[Koda G/K]],Stroški_po_elementih[Datum računa],\">=\"&O$3,Stroški_po_elementih[Datum računa],\"<=\"&O$4)+SUMIFS(Drugo[Preverite količino],Drugo[Koda G/K],Mesečni_znesek_povzetek[[#This Row],[Koda G/K]],Drugo[Inicializirana je zahteva za preverjanje datuma],\">=\"&DATEVALUE(\" 1 \"&Mesečni_znesek_povzetek[[#Headers],[December]]&_LETO),Drugo[Inicializirana je zahteva za preverjanje datuma],\"<=\"&O$4)","v":{"v":0,"d":"0.00 €"}},{"$f":"SUM(Mesečni_znesek_povzetek[[#This Row],[Januar]:[December]])","v":{"v":0,"d":"0.00 €"}}]
[null,7000,"Računalniki",{"$f":"SUMIFS(Stroški_po_elementih[Preverite količino],Stroški_po_elementih[Koda G/K],Mesečni_znesek_povzetek[[#This Row],[Koda G/K]],Stroški_po_elementih[Datum računa],\">=\"&D$3,Stroški_po_elementih[Datum računa],\"<=\"&D$4)+SUMIFS(Drugo[Preverite količino],Drugo[Koda G/K],Mesečni_znesek_povzetek[[#This Row],[Koda G/K]],Drugo[Inicializirana je zahteva za preverjanje datuma],\">=\"&DATEVALUE(\" 1 \"&Mesečni_znesek_povzetek[[#Headers],[Januar]]&_LETO),Drugo[Inicializirana je zahteva za preverjanje datuma],\"<=\"&D$4)","v":{"v":0,"d":"0.00 €"}},{"$f":"SUMIFS(Stroški_po_elementih[Preverite količino],Stroški_po_elementih[Koda G/K],Mesečni_znesek_povzetek[[#This Row],[Koda G/K]],Stroški_po_elementih[Datum računa],\">=\"&E$3,Stroški_po_elementih[Datum računa],\"<=\"&E$4)+SUMIFS(Drugo[Preverite količino],Drugo[Koda G/K],Mesečni_znesek_povzetek[[#This Row],[Koda G/K]],Drugo[Inicializirana je zahteva za preverjanje datuma],\">=\"&DATEVALUE(\" 1 \"&Mesečni_znesek_povzetek[[#Headers],[Februar]]&_LETO),Drugo[Inicializirana je zahteva za preverjanje datuma],\"<=\"&E$4)","v":{"v":0,"d":"0.00 €"}},{"$f":"SUMIFS(Stroški_po_elementih[Preverite količino],Stroški_po_elementih[Koda G/K],Mesečni_znesek_povzetek[[#This Row],[Koda G/K]],Stroški_po_elementih[Datum računa],\">=\"&F$3,Stroški_po_elementih[Datum računa],\"<=\"&F$4)+SUMIFS(Drugo[Preverite količino],Drugo[Koda G/K],Mesečni_znesek_povzetek[[#This Row],[Koda G/K]],Drugo[Inicializirana je zahteva za preverjanje datuma],\">=\"&DATEVALUE(\" 1 \"&Mesečni_znesek_povzetek[[#Headers],[Marec]]&_LETO),Drugo[Inicializirana je zahteva za preverjanje datuma],\"<=\"&F$4)","v":{"v":0,"d":"0.00 €"}},{"$f":"SUMIFS(Stroški_po_elementih[Preverite količino],Stroški_po_elementih[Koda G/K],Mesečni_znesek_povzetek[[#This Row],[Koda G/K]],Stroški_po_elementih[Datum računa],\">=\"&G$3,Stroški_po_elementih[Datum računa],\"<=\"&G$4)+SUMIFS(Drugo[Preverite količino],Drugo[Koda G/K],Mesečni_znesek_povzetek[[#This Row],[Koda G/K]],Drugo[Inicializirana je zahteva za preverjanje datuma],\">=\"&DATEVALUE(\" 1 \"&Mesečni_znesek_povzetek[[#Headers],[Apr]]&_LETO),Drugo[Inicializirana je zahteva za preverjanje datuma],\"<=\"&G$4)","v":{"v":0,"d":"0.00 €"}},{"$f":"SUMIFS(Stroški_po_elementih[Preverite količino],Stroški_po_elementih[Koda G/K],Mesečni_znesek_povzetek[[#This Row],[Koda G/K]],Stroški_po_elementih[Datum računa],\">=\"&H$3,Stroški_po_elementih[Datum računa],\"<=\"&H$4)+SUMIFS(Drugo[Preverite količino],Drugo[Koda G/K],Mesečni_znesek_povzetek[[#This Row],[Koda G/K]],Drugo[Inicializirana je zahteva za preverjanje datuma],\">=\"&DATEVALUE(\" 1 \"&Mesečni_znesek_povzetek[[#Headers],[Maj]]&_LETO),Drugo[Inicializirana je zahteva za preverjanje datuma],\"<=\"&H$4)","v":{"v":0,"d":"0.00 €"}},{"$f":"SUMIFS(Stroški_po_elementih[Preverite količino],Stroški_po_elementih[Koda G/K],Mesečni_znesek_povzetek[[#This Row],[Koda G/K]],Stroški_po_elementih[Datum računa],\">=\"&I$3,Stroški_po_elementih[Datum računa],\"<=\"&I$4)+SUMIFS(Drugo[Preverite količino],Drugo[Koda G/K],Mesečni_znesek_povzetek[[#This Row],[Koda G/K]],Drugo[Inicializirana je zahteva za preverjanje datuma],\">=\"&DATEVALUE(\" 1 \"&Mesečni_znesek_povzetek[[#Headers],[Jun]]&_LETO),Drugo[Inicializirana je zahteva za preverjanje datuma],\"<=\"&I$4)","v":{"v":0,"d":"0.00 €"}},{"$f":"SUMIFS(Stroški_po_elementih[Preverite količino],Stroški_po_elementih[Koda G/K],Mesečni_znesek_povzetek[[#This Row],[Koda G/K]],Stroški_po_elementih[Datum računa],\">=\"&J$3,Stroški_po_elementih[Datum računa],\"<=\"&J$4)+SUMIFS(Drugo[Preverite količino],Drugo[Koda G/K],Mesečni_znesek_povzetek[[#This Row],[Koda G/K]],Drugo[Inicializirana je zahteva za preverjanje datuma],\">=\"&DATEVALUE(\" 1 \"&Mesečni_znesek_povzetek[[#Headers],[Julij]]&_LETO),Drugo[Inicializirana je zahteva za preverjanje datuma],\"<=\"&J$4)","v":{"v":0,"d":"0.00 €"}},{"$f":"SUMIFS(Stroški_po_elementih[Preverite količino],Stroški_po_elementih[Koda G/K],Mesečni_znesek_povzetek[[#This Row],[Koda G/K]],Stroški_po_elementih[Datum računa],\">=\"&K$3,Stroški_po_elementih[Datum računa],\"<=\"&K$4)+SUMIFS(Drugo[Preverite količino],Drugo[Koda G/K],Mesečni_znesek_povzetek[[#This Row],[Koda G/K]],Drugo[Inicializirana je zahteva za preverjanje datuma],\">=\"&DATEVALUE(\" 1 \"&Mesečni_znesek_povzetek[[#Headers],[Avgust]]&_LETO),Drugo[Inicializirana je zahteva za preverjanje datuma],\"<=\"&K$4)","v":{"v":0,"d":"0.00 €"}},{"$f":"SUMIFS(Stroški_po_elementih[Preverite količino],Stroški_po_elementih[Koda G/K],Mesečni_znesek_povzetek[[#This Row],[Koda G/K]],Stroški_po_elementih[Datum računa],\">=\"&L$3,Stroški_po_elementih[Datum računa],\"<=\"&L$4)+SUMIFS(Drugo[Preverite količino],Drugo[Koda G/K],Mesečni_znesek_povzetek[[#This Row],[Koda G/K]],Drugo[Inicializirana je zahteva za preverjanje datuma],\">=\"&DATEVALUE(\" 1 \"&Mesečni_znesek_povzetek[[#Headers],[September]]&_LETO),Drugo[Inicializirana je zahteva za preverjanje datuma],\"<=\"&L$4)","v":{"v":0,"d":"0.00 €"}},{"$f":"SUMIFS(Stroški_po_elementih[Preverite količino],Stroški_po_elementih[Koda G/K],Mesečni_znesek_povzetek[[#This Row],[Koda G/K]],Stroški_po_elementih[Datum računa],\">=\"&M$3,Stroški_po_elementih[Datum računa],\"<=\"&M$4)+SUMIFS(Drugo[Preverite količino],Drugo[Koda G/K],Mesečni_znesek_povzetek[[#This Row],[Koda G/K]],Drugo[Inicializirana je zahteva za preverjanje datuma],\">=\"&DATEVALUE(\" 1 \"&Mesečni_znesek_povzetek[[#Headers],[Oktober]]&_LETO),Drugo[Inicializirana je zahteva za preverjanje datuma],\"<=\"&M$4)","v":{"v":0,"d":"0.00 €"}},{"$f":"SUMIFS(Stroški_po_elementih[Preverite količino],Stroški_po_elementih[Koda G/K],Mesečni_znesek_povzetek[[#This Row],[Koda G/K]],Stroški_po_elementih[Datum računa],\">=\"&N$3,Stroški_po_elementih[Datum računa],\"<=\"&N$4)+SUMIFS(Drugo[Preverite količino],Drugo[Koda G/K],Mesečni_znesek_povzetek[[#This Row],[Koda G/K]],Drugo[Inicializirana je zahteva za preverjanje datuma],\">=\"&DATEVALUE(\" 1 \"&Mesečni_znesek_povzetek[[#Headers],[November]]&_LETO),Drugo[Inicializirana je zahteva za preverjanje datuma],\"<=\"&N$4)","v":{"v":0,"d":"0.00 €"}},{"$f":"SUMIFS(Stroški_po_elementih[Preverite količino],Stroški_po_elementih[Koda G/K],Mesečni_znesek_povzetek[[#This Row],[Koda G/K]],Stroški_po_elementih[Datum računa],\">=\"&O$3,Stroški_po_elementih[Datum računa],\"<=\"&O$4)+SUMIFS(Drugo[Preverite količino],Drugo[Koda G/K],Mesečni_znesek_povzetek[[#This Row],[Koda G/K]],Drugo[Inicializirana je zahteva za preverjanje datuma],\">=\"&DATEVALUE(\" 1 \"&Mesečni_znesek_povzetek[[#Headers],[December]]&_LETO),Drugo[Inicializirana je zahteva za preverjanje datuma],\"<=\"&O$4)","v":{"v":0,"d":"0.00 €"}},{"$f":"SUM(Mesečni_znesek_povzetek[[#This Row],[Januar]:[December]])","v":{"v":0,"d":"0.00 €"}}]
[null,8000,"Zdravstveno zavarovanje",{"$f":"SUMIFS(Stroški_po_elementih[Preverite količino],Stroški_po_elementih[Koda G/K],Mesečni_znesek_povzetek[[#This Row],[Koda G/K]],Stroški_po_elementih[Datum računa],\">=\"&D$3,Stroški_po_elementih[Datum računa],\"<=\"&D$4)+SUMIFS(Drugo[Preverite količino],Drugo[Koda G/K],Mesečni_znesek_povzetek[[#This Row],[Koda G/K]],Drugo[Inicializirana je zahteva za preverjanje datuma],\">=\"&DATEVALUE(\" 1 \"&Mesečni_znesek_povzetek[[#Headers],[Januar]]&_LETO),Drugo[Inicializirana je zahteva za preverjanje datuma],\"<=\"&D$4)","v":{"v":0,"d":"0.00 €"}},{"$f":"SUMIFS(Stroški_po_elementih[Preverite količino],Stroški_po_elementih[Koda G/K],Mesečni_znesek_povzetek[[#This Row],[Koda G/K]],Stroški_po_elementih[Datum računa],\">=\"&E$3,Stroški_po_elementih[Datum računa],\"<=\"&E$4)+SUMIFS(Drugo[Preverite količino],Drugo[Koda G/K],Mesečni_znesek_povzetek[[#This Row],[Koda G/K]],Drugo[Inicializirana je zahteva za preverjanje datuma],\">=\"&DATEVALUE(\" 1 \"&Mesečni_znesek_povzetek[[#Headers],[Februar]]&_LETO),Drugo[Inicializirana je zahteva za preverjanje datuma],\"<=\"&E$4)","v":{"v":0,"d":"0.00 €"}},{"$f":"SUMIFS(Stroški_po_elementih[Preverite količino],Stroški_po_elementih[Koda G/K],Mesečni_znesek_povzetek[[#This Row],[Koda G/K]],Stroški_po_elementih[Datum računa],\">=\"&F$3,Stroški_po_elementih[Datum računa],\"<=\"&F$4)+SUMIFS(Drugo[Preverite količino],Drugo[Koda G/K],Mesečni_znesek_povzetek[[#This Row],[Koda G/K]],Drugo[Inicializirana je zahteva za preverjanje datuma],\">=\"&DATEVALUE(\" 1 \"&Mesečni_znesek_povzetek[[#Headers],[Marec]]&_LETO),Drugo[Inicializirana je zahteva za preverjanje datuma],\"<=\"&F$4)","v":{"v":0,"d":"0.00 €"}},{"$f":"SUMIFS(Stroški_po_elementih[Preverite količino],Stroški_po_elementih[Koda G/K],Mesečni_znesek_povzetek[[#This Row],[Koda G/K]],Stroški_po_elementih[Datum računa],\">=\"&G$3,Stroški_po_elementih[Datum računa],\"<=\"&G$4)+SUMIFS(Drugo[Preverite količino],Drugo[Koda G/K],Mesečni_znesek_povzetek[[#This Row],[Koda G/K]],Drugo[Inicializirana je zahteva za preverjanje datuma],\">=\"&DATEVALUE(\" 1 \"&Mesečni_znesek_povzetek[[#Headers],[Apr]]&_LETO),Drugo[Inicializirana je zahteva za preverjanje datuma],\"<=\"&G$4)","v":{"v":0,"d":"0.00 €"}},{"$f":"SUMIFS(Stroški_po_elementih[Preverite količino],Stroški_po_elementih[Koda G/K],Mesečni_znesek_povzetek[[#This Row],[Koda G/K]],Stroški_po_elementih[Datum računa],\">=\"&H$3,Stroški_po_elementih[Datum računa],\"<=\"&H$4)+SUMIFS(Drugo[Preverite količino],Drugo[Koda G/K],Mesečni_znesek_povzetek[[#This Row],[Koda G/K]],Drugo[Inicializirana je zahteva za preverjanje datuma],\">=\"&DATEVALUE(\" 1 \"&Mesečni_znesek_povzetek[[#Headers],[Maj]]&_LETO),Drugo[Inicializirana je zahteva za preverjanje datuma],\"<=\"&H$4)","v":{"v":0,"d":"0.00 €"}},{"$f":"SUMIFS(Stroški_po_elementih[Preverite količino],Stroški_po_elementih[Koda G/K],Mesečni_znesek_povzetek[[#This Row],[Koda G/K]],Stroški_po_elementih[Datum računa],\">=\"&I$3,Stroški_po_elementih[Datum računa],\"<=\"&I$4)+SUMIFS(Drugo[Preverite količino],Drugo[Koda G/K],Mesečni_znesek_povzetek[[#This Row],[Koda G/K]],Drugo[Inicializirana je zahteva za preverjanje datuma],\">=\"&DATEVALUE(\" 1 \"&Mesečni_znesek_povzetek[[#Headers],[Jun]]&_LETO),Drugo[Inicializirana je zahteva za preverjanje datuma],\"<=\"&I$4)","v":{"v":0,"d":"0.00 €"}},{"$f":"SUMIFS(Stroški_po_elementih[Preverite količino],Stroški_po_elementih[Koda G/K],Mesečni_znesek_povzetek[[#This Row],[Koda G/K]],Stroški_po_elementih[Datum računa],\">=\"&J$3,Stroški_po_elementih[Datum računa],\"<=\"&J$4)+SUMIFS(Drugo[Preverite količino],Drugo[Koda G/K],Mesečni_znesek_povzetek[[#This Row],[Koda G/K]],Drugo[Inicializirana je zahteva za preverjanje datuma],\">=\"&DATEVALUE(\" 1 \"&Mesečni_znesek_povzetek[[#Headers],[Julij]]&_LETO),Drugo[Inicializirana je zahteva za preverjanje datuma],\"<=\"&J$4)","v":{"v":0,"d":"0.00 €"}},{"$f":"SUMIFS(Stroški_po_elementih[Preverite količino],Stroški_po_elementih[Koda G/K],Mesečni_znesek_povzetek[[#This Row],[Koda G/K]],Stroški_po_elementih[Datum računa],\">=\"&K$3,Stroški_po_elementih[Datum računa],\"<=\"&K$4)+SUMIFS(Drugo[Preverite količino],Drugo[Koda G/K],Mesečni_znesek_povzetek[[#This Row],[Koda G/K]],Drugo[Inicializirana je zahteva za preverjanje datuma],\">=\"&DATEVALUE(\" 1 \"&Mesečni_znesek_povzetek[[#Headers],[Avgust]]&_LETO),Drugo[Inicializirana je zahteva za preverjanje datuma],\"<=\"&K$4)","v":{"v":0,"d":"0.00 €"}},{"$f":"SUMIFS(Stroški_po_elementih[Preverite količino],Stroški_po_elementih[Koda G/K],Mesečni_znesek_povzetek[[#This Row],[Koda G/K]],Stroški_po_elementih[Datum računa],\">=\"&L$3,Stroški_po_elementih[Datum računa],\"<=\"&L$4)+SUMIFS(Drugo[Preverite količino],Drugo[Koda G/K],Mesečni_znesek_povzetek[[#This Row],[Koda G/K]],Drugo[Inicializirana je zahteva za preverjanje datuma],\">=\"&DATEVALUE(\" 1 \"&Mesečni_znesek_povzetek[[#Headers],[September]]&_LETO),Drugo[Inicializirana je zahteva za preverjanje datuma],\"<=\"&L$4)","v":{"v":0,"d":"0.00 €"}},{"$f":"SUMIFS(Stroški_po_elementih[Preverite količino],Stroški_po_elementih[Koda G/K],Mesečni_znesek_povzetek[[#This Row],[Koda G/K]],Stroški_po_elementih[Datum računa],\">=\"&M$3,Stroški_po_elementih[Datum računa],\"<=\"&M$4)+SUMIFS(Drugo[Preverite količino],Drugo[Koda G/K],Mesečni_znesek_povzetek[[#This Row],[Koda G/K]],Drugo[Inicializirana je zahteva za preverjanje datuma],\">=\"&DATEVALUE(\" 1 \"&Mesečni_znesek_povzetek[[#Headers],[Oktober]]&_LETO),Drugo[Inicializirana je zahteva za preverjanje datuma],\"<=\"&M$4)","v":{"v":0,"d":"0.00 €"}},{"$f":"SUMIFS(Stroški_po_elementih[Preverite količino],Stroški_po_elementih[Koda G/K],Mesečni_znesek_povzetek[[#This Row],[Koda G/K]],Stroški_po_elementih[Datum računa],\">=\"&N$3,Stroški_po_elementih[Datum računa],\"<=\"&N$4)+SUMIFS(Drugo[Preverite količino],Drugo[Koda G/K],Mesečni_znesek_povzetek[[#This Row],[Koda G/K]],Drugo[Inicializirana je zahteva za preverjanje datuma],\">=\"&DATEVALUE(\" 1 \"&Mesečni_znesek_povzetek[[#Headers],[November]]&_LETO),Drugo[Inicializirana je zahteva za preverjanje datuma],\"<=\"&N$4)","v":{"v":0,"d":"0.00 €"}},{"$f":"SUMIFS(Stroški_po_elementih[Preverite količino],Stroški_po_elementih[Koda G/K],Mesečni_znesek_povzetek[[#This Row],[Koda G/K]],Stroški_po_elementih[Datum računa],\">=\"&O$3,Stroški_po_elementih[Datum računa],\"<=\"&O$4)+SUMIFS(Drugo[Preverite količino],Drugo[Koda G/K],Mesečni_znesek_povzetek[[#This Row],[Koda G/K]],Drugo[Inicializirana je zahteva za preverjanje datuma],\">=\"&DATEVALUE(\" 1 \"&Mesečni_znesek_povzetek[[#Headers],[December]]&_LETO),Drugo[Inicializirana je zahteva za preverjanje datuma],\"<=\"&O$4)","v":{"v":0,"d":"0.00 €"}},{"$f":"SUM(Mesečni_znesek_povzetek[[#This Row],[Januar]:[December]])","v":{"v":0,"d":"0.00 €"}}]
[null,9000,"Stroški gradnje",{"$f":"SUMIFS(Stroški_po_elementih[Preverite količino],Stroški_po_elementih[Koda G/K],Mesečni_znesek_povzetek[[#This Row],[Koda G/K]],Stroški_po_elementih[Datum računa],\">=\"&D$3,Stroški_po_elementih[Datum računa],\"<=\"&D$4)+SUMIFS(Drugo[Preverite količino],Drugo[Koda G/K],Mesečni_znesek_povzetek[[#This Row],[Koda G/K]],Drugo[Inicializirana je zahteva za preverjanje datuma],\">=\"&DATEVALUE(\" 1 \"&Mesečni_znesek_povzetek[[#Headers],[Januar]]&_LETO),Drugo[Inicializirana je zahteva za preverjanje datuma],\"<=\"&D$4)","v":{"v":0,"d":"0.00 €"}},{"$f":"SUMIFS(Stroški_po_elementih[Preverite količino],Stroški_po_elementih[Koda G/K],Mesečni_znesek_povzetek[[#This Row],[Koda G/K]],Stroški_po_elementih[Datum računa],\">=\"&E$3,Stroški_po_elementih[Datum računa],\"<=\"&E$4)+SUMIFS(Drugo[Preverite količino],Drugo[Koda G/K],Mesečni_znesek_povzetek[[#This Row],[Koda G/K]],Drugo[Inicializirana je zahteva za preverjanje datuma],\">=\"&DATEVALUE(\" 1 \"&Mesečni_znesek_povzetek[[#Headers],[Februar]]&_LETO),Drugo[Inicializirana je zahteva za preverjanje datuma],\"<=\"&E$4)","v":{"v":0,"d":"0.00 €"}},{"$f":"SUMIFS(Stroški_po_elementih[Preverite količino],Stroški_po_elementih[Koda G/K],Mesečni_znesek_povzetek[[#This Row],[Koda G/K]],Stroški_po_elementih[Datum računa],\">=\"&F$3,Stroški_po_elementih[Datum računa],\"<=\"&F$4)+SUMIFS(Drugo[Preverite količino],Drugo[Koda G/K],Mesečni_znesek_povzetek[[#This Row],[Koda G/K]],Drugo[Inicializirana je zahteva za preverjanje datuma],\">=\"&DATEVALUE(\" 1 \"&Mesečni_znesek_povzetek[[#Headers],[Marec]]&_LETO),Drugo[Inicializirana je zahteva za preverjanje datuma],\"<=\"&F$4)","v":{"v":0,"d":"0.00 €"}},{"$f":"SUMIFS(Stroški_po_elementih[Preverite količino],Stroški_po_elementih[Koda G/K],Mesečni_znesek_povzetek[[#This Row],[Koda G/K]],Stroški_po_elementih[Datum računa],\">=\"&G$3,Stroški_po_elementih[Datum računa],\"<=\"&G$4)+SUMIFS(Drugo[Preverite količino],Drugo[Koda G/K],Mesečni_znesek_povzetek[[#This Row],[Koda G/K]],Drugo[Inicializirana je zahteva za preverjanje datuma],\">=\"&DATEVALUE(\" 1 \"&Mesečni_znesek_povzetek[[#Headers],[Apr]]&_LETO),Drugo[Inicializirana je zahteva za preverjanje datuma],\"<=\"&G$4)","v":{"v":0,"d":"0.00 €"}},{"$f":"SUMIFS(Stroški_po_elementih[Preverite količino],Stroški_po_elementih[Koda G/K],Mesečni_znesek_povzetek[[#This Row],[Koda G/K]],Stroški_po_elementih[Datum računa],\">=\"&H$3,Stroški_po_elementih[Datum računa],\"<=\"&H$4)+SUMIFS(Drugo[Preverite količino],Drugo[Koda G/K],Mesečni_znesek_povzetek[[#This Row],[Koda G/K]],Drugo[Inicializirana je zahteva za preverjanje datuma],\">=\"&DATEVALUE(\" 1 \"&Mesečni_znesek_povzetek[[#Headers],[Maj]]&_LETO),Drugo[Inicializirana je zahteva za preverjanje datuma],\"<=\"&H$4)","v":{"v":0,"d":"0.00 €"}},{"$f":"SUMIFS(Stroški_po_elementih[Preverite količino],Stroški_po_elementih[Koda G/K],Mesečni_znesek_povzetek[[#This Row],[Koda G/K]],Stroški_po_elementih[Datum računa],\">=\"&I$3,Stroški_po_elementih[Datum računa],\"<=\"&I$4)+SUMIFS(Drugo[Preverite količino],Drugo[Koda G/K],Mesečni_znesek_povzetek[[#This Row],[Koda G/K]],Drugo[Inicializirana je zahteva za preverjanje datuma],\">=\"&DATEVALUE(\" 1 \"&Mesečni_znesek_povzetek[[#Headers],[Jun]]&_LETO),Drugo[Inicializirana je zahteva za preverjanje datuma],\"<=\"&I$4)","v":{"v":0,"d":"0.00 €"}},{"$f":"SUMIFS(Stroški_po_elementih[Preverite količino],Stroški_po_elementih[Koda G/K],Mesečni_znesek_povzetek[[#This Row],[Koda G/K]],Stroški_po_elementih[Datum računa],\">=\"&J$3,Stroški_po_elementih[Datum računa],\"<=\"&J$4)+SUMIFS(Drugo[Preverite količino],Drugo[Koda G/K],Mesečni_znesek_povzetek[[#This Row],[Koda G/K]],Drugo[Inicializirana je zahteva za preverjanje datuma],\">=\"&DATEVALUE(\" 1 \"&Mesečni_znesek_povzetek[[#Headers],[Julij]]&_LETO),Drugo[Inicializirana je zahteva za preverjanje datuma],\"<=\"&J$4)","v":{"v":0,"d":"0.00 €"}},{"$f":"SUMIFS(Stroški_po_elementih[Preverite količino],Stroški_po_elementih[Koda G/K],Mesečni_znesek_povzetek[[#This Row],[Koda G/K]],Stroški_po_elementih[Datum računa],\">=\"&K$3,Stroški_po_elementih[Datum računa],\"<=\"&K$4)+SUMIFS(Drugo[Preverite količino],Drugo[Koda G/K],Mesečni_znesek_povzetek[[#This Row],[Koda G/K]],Drugo[Inicializirana je zahteva za preverjanje datuma],\">=\"&DATEVALUE(\" 1 \"&Mesečni_znesek_povzetek[[#Headers],[Avgust]]&_LETO),Drugo[Inicializirana je zahteva za preverjanje datuma],\"<=\"&K$4)","v":{"v":0,"d":"0.00 €"}},{"$f":"SUMIFS(Stroški_po_elementih[Preverite količino],Stroški_po_elementih[Koda G/K],Mesečni_znesek_povzetek[[#This Row],[Koda G/K]],Stroški_po_elementih[Datum računa],\">=\"&L$3,Stroški_po_elementih[Datum računa],\"<=\"&L$4)+SUMIFS(Drugo[Preverite količino],Drugo[Koda G/K],Mesečni_znesek_povzetek[[#This Row],[Koda G/K]],Drugo[Inicializirana je zahteva za preverjanje datuma],\">=\"&DATEVALUE(\" 1 \"&Mesečni_znesek_povzetek[[#Headers],[September]]&_LETO),Drugo[Inicializirana je zahteva za preverjanje datuma],\"<=\"&L$4)","v":{"v":0,"d":"0.00 €"}},{"$f":"SUMIFS(Stroški_po_elementih[Preverite količino],Stroški_po_elementih[Koda G/K],Mesečni_znesek_povzetek[[#This Row],[Koda G/K]],Stroški_po_elementih[Datum računa],\">=\"&M$3,Stroški_po_elementih[Datum računa],\"<=\"&M$4)+SUMIFS(Drugo[Preverite količino],Drugo[Koda G/K],Mesečni_znesek_povzetek[[#This Row],[Koda G/K]],Drugo[Inicializirana je zahteva za preverjanje datuma],\">=\"&DATEVALUE(\" 1 \"&Mesečni_znesek_povzetek[[#Headers],[Oktober]]&_LETO),Drugo[Inicializirana je zahteva za preverjanje datuma],\"<=\"&M$4)","v":{"v":0,"d":"0.00 €"}},{"$f":"SUMIFS(Stroški_po_elementih[Preverite količino],Stroški_po_elementih[Koda G/K],Mesečni_znesek_povzetek[[#This Row],[Koda G/K]],Stroški_po_elementih[Datum računa],\">=\"&N$3,Stroški_po_elementih[Datum računa],\"<=\"&N$4)+SUMIFS(Drugo[Preverite količino],Drugo[Koda G/K],Mesečni_znesek_povzetek[[#This Row],[Koda G/K]],Drugo[Inicializirana je zahteva za preverjanje datuma],\">=\"&DATEVALUE(\" 1 \"&Mesečni_znesek_povzetek[[#Headers],[November]]&_LETO),Drugo[Inicializirana je zahteva za preverjanje datuma],\"<=\"&N$4)","v":{"v":0,"d":"0.00 €"}},{"$f":"SUMIFS(Stroški_po_elementih[Preverite količino],Stroški_po_elementih[Koda G/K],Mesečni_znesek_povzetek[[#This Row],[Koda G/K]],Stroški_po_elementih[Datum računa],\">=\"&O$3,Stroški_po_elementih[Datum računa],\"<=\"&O$4)+SUMIFS(Drugo[Preverite količino],Drugo[Koda G/K],Mesečni_znesek_povzetek[[#This Row],[Koda G/K]],Drugo[Inicializirana je zahteva za preverjanje datuma],\">=\"&DATEVALUE(\" 1 \"&Mesečni_znesek_povzetek[[#Headers],[December]]&_LETO),Drugo[Inicializirana je zahteva za preverjanje datuma],\"<=\"&O$4)","v":{"v":0,"d":"0.00 €"}},{"$f":"SUM(Mesečni_znesek_povzetek[[#This Row],[Januar]:[December]])","v":{"v":0,"d":"0.00 €"}}]
[null,10000,"Trženje",{"$f":"SUMIFS(Stroški_po_elementih[Preverite količino],Stroški_po_elementih[Koda G/K],Mesečni_znesek_povzetek[[#This Row],[Koda G/K]],Stroški_po_elementih[Datum računa],\">=\"&D$3,Stroški_po_elementih[Datum računa],\"<=\"&D$4)+SUMIFS(Drugo[Preverite količino],Drugo[Koda G/K],Mesečni_znesek_povzetek[[#This Row],[Koda G/K]],Drugo[Inicializirana je zahteva za preverjanje datuma],\">=\"&DATEVALUE(\" 1 \"&Mesečni_znesek_povzetek[[#Headers],[Januar]]&_LETO),Drugo[Inicializirana je zahteva za preverjanje datuma],\"<=\"&D$4)","v":{"v":0,"d":"0.00 €"}},{"$f":"SUMIFS(Stroški_po_elementih[Preverite količino],Stroški_po_elementih[Koda G/K],Mesečni_znesek_povzetek[[#This Row],[Koda G/K]],Stroški_po_elementih[Datum računa],\">=\"&E$3,Stroški_po_elementih[Datum računa],\"<=\"&E$4)+SUMIFS(Drugo[Preverite količino],Drugo[Koda G/K],Mesečni_znesek_povzetek[[#This Row],[Koda G/K]],Drugo[Inicializirana je zahteva za preverjanje datuma],\">=\"&DATEVALUE(\" 1 \"&Mesečni_znesek_povzetek[[#Headers],[Februar]]&_LETO),Drugo[Inicializirana je zahteva za preverjanje datuma],\"<=\"&E$4)","v":{"v":0,"d":"0.00 €"}},{"$f":"SUMIFS(Stroški_po_elementih[Preverite količino],Stroški_po_elementih[Koda G/K],Mesečni_znesek_povzetek[[#This Row],[Koda G/K]],Stroški_po_elementih[Datum računa],\">=\"&F$3,Stroški_po_elementih[Datum računa],\"<=\"&F$4)+SUMIFS(Drugo[Preverite količino],Drugo[Koda G/K],Mesečni_znesek_povzetek[[#This Row],[Koda G/K]],Drugo[Inicializirana je zahteva za preverjanje datuma],\">=\"&DATEVALUE(\" 1 \"&Mesečni_znesek_povzetek[[#Headers],[Marec]]&_LETO),Drugo[Inicializirana je zahteva za preverjanje datuma],\"<=\"&F$4)","v":{"v":0,"d":"0.00 €"}},{"$f":"SUMIFS(Stroški_po_elementih[Preverite količino],Stroški_po_elementih[Koda G/K],Mesečni_znesek_povzetek[[#This Row],[Koda G/K]],Stroški_po_elementih[Datum računa],\">=\"&G$3,Stroški_po_elementih[Datum računa],\"<=\"&G$4)+SUMIFS(Drugo[Preverite količino],Drugo[Koda G/K],Mesečni_znesek_povzetek[[#This Row],[Koda G/K]],Drugo[Inicializirana je zahteva za preverjanje datuma],\">=\"&DATEVALUE(\" 1 \"&Mesečni_znesek_povzetek[[#Headers],[Apr]]&_LETO),Drugo[Inicializirana je zahteva za preverjanje datuma],\"<=\"&G$4)","v":{"v":0,"d":"0.00 €"}},{"$f":"SUMIFS(Stroški_po_elementih[Preverite količino],Stroški_po_elementih[Koda G/K],Mesečni_znesek_povzetek[[#This Row],[Koda G/K]],Stroški_po_elementih[Datum računa],\">=\"&H$3,Stroški_po_elementih[Datum računa],\"<=\"&H$4)+SUMIFS(Drugo[Preverite količino],Drugo[Koda G/K],Mesečni_znesek_povzetek[[#This Row],[Koda G/K]],Drugo[Inicializirana je zahteva za preverjanje datuma],\">=\"&DATEVALUE(\" 1 \"&Mesečni_znesek_povzetek[[#Headers],[Maj]]&_LETO),Drugo[Inicializirana je zahteva za preverjanje datuma],\"<=\"&H$4)","v":{"v":0,"d":"0.00 €"}},{"$f":"SUMIFS(Stroški_po_elementih[Preverite količino],Stroški_po_elementih[Koda G/K],Mesečni_znesek_povzetek[[#This Row],[Koda G/K]],Stroški_po_elementih[Datum računa],\">=\"&I$3,Stroški_po_elementih[Datum računa],\"<=\"&I$4)+SUMIFS(Drugo[Preverite količino],Drugo[Koda G/K],Mesečni_znesek_povzetek[[#This Row],[Koda G/K]],Drugo[Inicializirana je zahteva za preverjanje datuma],\">=\"&DATEVALUE(\" 1 \"&Mesečni_znesek_povzetek[[#Headers],[Jun]]&_LETO),Drugo[Inicializirana je zahteva za preverjanje datuma],\"<=\"&I$4)","v":{"v":0,"d":"0.00 €"}},{"$f":"SUMIFS(Stroški_po_elementih[Preverite količino],Stroški_po_elementih[Koda G/K],Mesečni_znesek_povzetek[[#This Row],[Koda G/K]],Stroški_po_elementih[Datum računa],\">=\"&J$3,Stroški_po_elementih[Datum računa],\"<=\"&J$4)+SUMIFS(Drugo[Preverite količino],Drugo[Koda G/K],Mesečni_znesek_povzetek[[#This Row],[Koda G/K]],Drugo[Inicializirana je zahteva za preverjanje datuma],\">=\"&DATEVALUE(\" 1 \"&Mesečni_znesek_povzetek[[#Headers],[Julij]]&_LETO),Drugo[Inicializirana je zahteva za preverjanje datuma],\"<=\"&J$4)","v":{"v":0,"d":"0.00 €"}},{"$f":"SUMIFS(Stroški_po_elementih[Preverite količino],Stroški_po_elementih[Koda G/K],Mesečni_znesek_povzetek[[#This Row],[Koda G/K]],Stroški_po_elementih[Datum računa],\">=\"&K$3,Stroški_po_elementih[Datum računa],\"<=\"&K$4)+SUMIFS(Drugo[Preverite količino],Drugo[Koda G/K],Mesečni_znesek_povzetek[[#This Row],[Koda G/K]],Drugo[Inicializirana je zahteva za preverjanje datuma],\">=\"&DATEVALUE(\" 1 \"&Mesečni_znesek_povzetek[[#Headers],[Avgust]]&_LETO),Drugo[Inicializirana je zahteva za preverjanje datuma],\"<=\"&K$4)","v":{"v":0,"d":"0.00 €"}},{"$f":"SUMIFS(Stroški_po_elementih[Preverite količino],Stroški_po_elementih[Koda G/K],Mesečni_znesek_povzetek[[#This Row],[Koda G/K]],Stroški_po_elementih[Datum računa],\">=\"&L$3,Stroški_po_elementih[Datum računa],\"<=\"&L$4)+SUMIFS(Drugo[Preverite količino],Drugo[Koda G/K],Mesečni_znesek_povzetek[[#This Row],[Koda G/K]],Drugo[Inicializirana je zahteva za preverjanje datuma],\">=\"&DATEVALUE(\" 1 \"&Mesečni_znesek_povzetek[[#Headers],[September]]&_LETO),Drugo[Inicializirana je zahteva za preverjanje datuma],\"<=\"&L$4)","v":{"v":0,"d":"0.00 €"}},{"$f":"SUMIFS(Stroški_po_elementih[Preverite količino],Stroški_po_elementih[Koda G/K],Mesečni_znesek_povzetek[[#This Row],[Koda G/K]],Stroški_po_elementih[Datum računa],\">=\"&M$3,Stroški_po_elementih[Datum računa],\"<=\"&M$4)+SUMIFS(Drugo[Preverite količino],Drugo[Koda G/K],Mesečni_znesek_povzetek[[#This Row],[Koda G/K]],Drugo[Inicializirana je zahteva za preverjanje datuma],\">=\"&DATEVALUE(\" 1 \"&Mesečni_znesek_povzetek[[#Headers],[Oktober]]&_LETO),Drugo[Inicializirana je zahteva za preverjanje datuma],\"<=\"&M$4)","v":{"v":0,"d":"0.00 €"}},{"$f":"SUMIFS(Stroški_po_elementih[Preverite količino],Stroški_po_elementih[Koda G/K],Mesečni_znesek_povzetek[[#This Row],[Koda G/K]],Stroški_po_elementih[Datum računa],\">=\"&N$3,Stroški_po_elementih[Datum računa],\"<=\"&N$4)+SUMIFS(Drugo[Preverite količino],Drugo[Koda G/K],Mesečni_znesek_povzetek[[#This Row],[Koda G/K]],Drugo[Inicializirana je zahteva za preverjanje datuma],\">=\"&DATEVALUE(\" 1 \"&Mesečni_znesek_povzetek[[#Headers],[November]]&_LETO),Drugo[Inicializirana je zahteva za preverjanje datuma],\"<=\"&N$4)","v":{"v":0,"d":"0.00 €"}},{"$f":"SUMIFS(Stroški_po_elementih[Preverite količino],Stroški_po_elementih[Koda G/K],Mesečni_znesek_povzetek[[#This Row],[Koda G/K]],Stroški_po_elementih[Datum računa],\">=\"&O$3,Stroški_po_elementih[Datum računa],\"<=\"&O$4)+SUMIFS(Drugo[Preverite količino],Drugo[Koda G/K],Mesečni_znesek_povzetek[[#This Row],[Koda G/K]],Drugo[Inicializirana je zahteva za preverjanje datuma],\">=\"&DATEVALUE(\" 1 \"&Mesečni_znesek_povzetek[[#Headers],[December]]&_LETO),Drugo[Inicializirana je zahteva za preverjanje datuma],\"<=\"&O$4)","v":{"v":0,"d":"0.00 €"}},{"$f":"SUM(Mesečni_znesek_povzetek[[#This Row],[Januar]:[December]])","v":{"v":0,"d":"0.00 €"}}]
[null,11000,"Dobrodelno dejavnosti",{"$f":"SUMIFS(Stroški_po_elementih[Preverite količino],Stroški_po_elementih[Koda G/K],Mesečni_znesek_povzetek[[#This Row],[Koda G/K]],Stroški_po_elementih[Datum računa],\">=\"&D$3,Stroški_po_elementih[Datum računa],\"<=\"&D$4)+SUMIFS(Drugo[Preverite količino],Drugo[Koda G/K],Mesečni_znesek_povzetek[[#This Row],[Koda G/K]],Drugo[Inicializirana je zahteva za preverjanje datuma],\">=\"&DATEVALUE(\" 1 \"&Mesečni_znesek_povzetek[[#Headers],[Januar]]&_LETO),Drugo[Inicializirana je zahteva za preverjanje datuma],\"<=\"&D$4)","v":{"v":0,"d":"0.00 €"}},{"$f":"SUMIFS(Stroški_po_elementih[Preverite količino],Stroški_po_elementih[Koda G/K],Mesečni_znesek_povzetek[[#This Row],[Koda G/K]],Stroški_po_elementih[Datum računa],\">=\"&E$3,Stroški_po_elementih[Datum računa],\"<=\"&E$4)+SUMIFS(Drugo[Preverite količino],Drugo[Koda G/K],Mesečni_znesek_povzetek[[#This Row],[Koda G/K]],Drugo[Inicializirana je zahteva za preverjanje datuma],\">=\"&DATEVALUE(\" 1 \"&Mesečni_znesek_povzetek[[#Headers],[Februar]]&_LETO),Drugo[Inicializirana je zahteva za preverjanje datuma],\"<=\"&E$4)","v":{"v":0,"d":"0.00 €"}},{"$f":"SUMIFS(Stroški_po_elementih[Preverite količino],Stroški_po_elementih[Koda G/K],Mesečni_znesek_povzetek[[#This Row],[Koda G/K]],Stroški_po_elementih[Datum računa],\">=\"&F$3,Stroški_po_elementih[Datum računa],\"<=\"&F$4)+SUMIFS(Drugo[Preverite količino],Drugo[Koda G/K],Mesečni_znesek_povzetek[[#This Row],[Koda G/K]],Drugo[Inicializirana je zahteva za preverjanje datuma],\">=\"&DATEVALUE(\" 1 \"&Mesečni_znesek_povzetek[[#Headers],[Marec]]&_LETO),Drugo[Inicializirana je zahteva za preverjanje datuma],\"<=\"&F$4)","v":{"v":0,"d":"0.00 €"}},{"$f":"SUMIFS(Stroški_po_elementih[Preverite količino],Stroški_po_elementih[Koda G/K],Mesečni_znesek_povzetek[[#This Row],[Koda G/K]],Stroški_po_elementih[Datum računa],\">=\"&G$3,Stroški_po_elementih[Datum računa],\"<=\"&G$4)+SUMIFS(Drugo[Preverite količino],Drugo[Koda G/K],Mesečni_znesek_povzetek[[#This Row],[Koda G/K]],Drugo[Inicializirana je zahteva za preverjanje datuma],\">=\"&DATEVALUE(\" 1 \"&Mesečni_znesek_povzetek[[#Headers],[Apr]]&_LETO),Drugo[Inicializirana je zahteva za preverjanje datuma],\"<=\"&G$4)","v":{"v":0,"d":"0.00 €"}},{"$f":"SUMIFS(Stroški_po_elementih[Preverite količino],Stroški_po_elementih[Koda G/K],Mesečni_znesek_povzetek[[#This Row],[Koda G/K]],Stroški_po_elementih[Datum računa],\">=\"&H$3,Stroški_po_elementih[Datum računa],\"<=\"&H$4)+SUMIFS(Drugo[Preverite količino],Drugo[Koda G/K],Mesečni_znesek_povzetek[[#This Row],[Koda G/K]],Drugo[Inicializirana je zahteva za preverjanje datuma],\">=\"&DATEVALUE(\" 1 \"&Mesečni_znesek_povzetek[[#Headers],[Maj]]&_LETO),Drugo[Inicializirana je zahteva za preverjanje datuma],\"<=\"&H$4)","v":{"v":0,"d":"0.00 €"}},{"$f":"SUMIFS(Stroški_po_elementih[Preverite količino],Stroški_po_elementih[Koda G/K],Mesečni_znesek_povzetek[[#This Row],[Koda G/K]],Stroški_po_elementih[Datum računa],\">=\"&I$3,Stroški_po_elementih[Datum računa],\"<=\"&I$4)+SUMIFS(Drugo[Preverite količino],Drugo[Koda G/K],Mesečni_znesek_povzetek[[#This Row],[Koda G/K]],Drugo[Inicializirana je zahteva za preverjanje datuma],\">=\"&DATEVALUE(\" 1 \"&Mesečni_znesek_povzetek[[#Headers],[Jun]]&_LETO),Drugo[Inicializirana je zahteva za preverjanje datuma],\"<=\"&I$4)","v":{"v":0,"d":"0.00 €"}},{"$f":"SUMIFS(Stroški_po_elementih[Preverite količino],Stroški_po_elementih[Koda G/K],Mesečni_znesek_povzetek[[#This Row],[Koda G/K]],Stroški_po_elementih[Datum računa],\">=\"&J$3,Stroški_po_elementih[Datum računa],\"<=\"&J$4)+SUMIFS(Drugo[Preverite količino],Drugo[Koda G/K],Mesečni_znesek_povzetek[[#This Row],[Koda G/K]],Drugo[Inicializirana je zahteva za preverjanje datuma],\">=\"&DATEVALUE(\" 1 \"&Mesečni_znesek_povzetek[[#Headers],[Julij]]&_LETO),Drugo[Inicializirana je zahteva za preverjanje datuma],\"<=\"&J$4)","v":{"v":0,"d":"0.00 €"}},{"$f":"SUMIFS(Stroški_po_elementih[Preverite količino],Stroški_po_elementih[Koda G/K],Mesečni_znesek_povzetek[[#This Row],[Koda G/K]],Stroški_po_elementih[Datum računa],\">=\"&K$3,Stroški_po_elementih[Datum računa],\"<=\"&K$4)+SUMIFS(Drugo[Preverite količino],Drugo[Koda G/K],Mesečni_znesek_povzetek[[#This Row],[Koda G/K]],Drugo[Inicializirana je zahteva za preverjanje datuma],\">=\"&DATEVALUE(\" 1 \"&Mesečni_znesek_povzetek[[#Headers],[Avgust]]&_LETO),Drugo[Inicializirana je zahteva za preverjanje datuma],\"<=\"&K$4)","v":{"v":0,"d":"0.00 €"}},{"$f":"SUMIFS(Stroški_po_elementih[Preverite količino],Stroški_po_elementih[Koda G/K],Mesečni_znesek_povzetek[[#This Row],[Koda G/K]],Stroški_po_elementih[Datum računa],\">=\"&L$3,Stroški_po_elementih[Datum računa],\"<=\"&L$4)+SUMIFS(Drugo[Preverite količino],Drugo[Koda G/K],Mesečni_znesek_povzetek[[#This Row],[Koda G/K]],Drugo[Inicializirana je zahteva za preverjanje datuma],\">=\"&DATEVALUE(\" 1 \"&Mesečni_znesek_povzetek[[#Headers],[September]]&_LETO),Drugo[Inicializirana je zahteva za preverjanje datuma],\"<=\"&L$4)","v":{"v":0,"d":"0.00 €"}},{"$f":"SUMIFS(Stroški_po_elementih[Preverite količino],Stroški_po_elementih[Koda G/K],Mesečni_znesek_povzetek[[#This Row],[Koda G/K]],Stroški_po_elementih[Datum računa],\">=\"&M$3,Stroški_po_elementih[Datum računa],\"<=\"&M$4)+SUMIFS(Drugo[Preverite količino],Drugo[Koda G/K],Mesečni_znesek_povzetek[[#This Row],[Koda G/K]],Drugo[Inicializirana je zahteva za preverjanje datuma],\">=\"&DATEVALUE(\" 1 \"&Mesečni_znesek_povzetek[[#Headers],[Oktober]]&_LETO),Drugo[Inicializirana je zahteva za preverjanje datuma],\"<=\"&M$4)","v":{"v":0,"d":"0.00 €"}},{"$f":"SUMIFS(Stroški_po_elementih[Preverite količino],Stroški_po_elementih[Koda G/K],Mesečni_znesek_povzetek[[#This Row],[Koda G/K]],Stroški_po_elementih[Datum računa],\">=\"&N$3,Stroški_po_elementih[Datum računa],\"<=\"&N$4)+SUMIFS(Drugo[Preverite količino],Drugo[Koda G/K],Mesečni_znesek_povzetek[[#This Row],[Koda G/K]],Drugo[Inicializirana je zahteva za preverjanje datuma],\">=\"&DATEVALUE(\" 1 \"&Mesečni_znesek_povzetek[[#Headers],[November]]&_LETO),Drugo[Inicializirana je zahteva za preverjanje datuma],\"<=\"&N$4)","v":{"v":0,"d":"0.00 €"}},{"$f":"SUMIFS(Stroški_po_elementih[Preverite količino],Stroški_po_elementih[Koda G/K],Mesečni_znesek_povzetek[[#This Row],[Koda G/K]],Stroški_po_elementih[Datum računa],\">=\"&O$3,Stroški_po_elementih[Datum računa],\"<=\"&O$4)+SUMIFS(Drugo[Preverite količino],Drugo[Koda G/K],Mesečni_znesek_povzetek[[#This Row],[Koda G/K]],Drugo[Inicializirana je zahteva za preverjanje datuma],\">=\"&DATEVALUE(\" 1 \"&Mesečni_znesek_povzetek[[#Headers],[December]]&_LETO),Drugo[Inicializirana je zahteva za preverjanje datuma],\"<=\"&O$4)","v":{"v":0,"d":"0.00 €"}},{"$f":"SUM(Mesečni_znesek_povzetek[[#This Row],[Januar]:[December]])","v":{"v":0,"d":"0.00 €"}}]
[null,12000,"Sponzorstva",{"$f":"SUMIFS(Stroški_po_elementih[Preverite količino],Stroški_po_elementih[Koda G/K],Mesečni_znesek_povzetek[[#This Row],[Koda G/K]],Stroški_po_elementih[Datum računa],\">=\"&D$3,Stroški_po_elementih[Datum računa],\"<=\"&D$4)+SUMIFS(Drugo[Preverite količino],Drugo[Koda G/K],Mesečni_znesek_povzetek[[#This Row],[Koda G/K]],Drugo[Inicializirana je zahteva za preverjanje datuma],\">=\"&DATEVALUE(\" 1 \"&Mesečni_znesek_povzetek[[#Headers],[Januar]]&_LETO),Drugo[Inicializirana je zahteva za preverjanje datuma],\"<=\"&D$4)","v":{"v":0,"d":"0.00 €"}},{"$f":"SUMIFS(Stroški_po_elementih[Preverite količino],Stroški_po_elementih[Koda G/K],Mesečni_znesek_povzetek[[#This Row],[Koda G/K]],Stroški_po_elementih[Datum računa],\">=\"&E$3,Stroški_po_elementih[Datum računa],\"<=\"&E$4)+SUMIFS(Drugo[Preverite količino],Drugo[Koda G/K],Mesečni_znesek_povzetek[[#This Row],[Koda G/K]],Drugo[Inicializirana je zahteva za preverjanje datuma],\">=\"&DATEVALUE(\" 1 \"&Mesečni_znesek_povzetek[[#Headers],[Februar]]&_LETO),Drugo[Inicializirana je zahteva za preverjanje datuma],\"<=\"&E$4)","v":{"v":0,"d":"0.00 €"}},{"$f":"SUMIFS(Stroški_po_elementih[Preverite količino],Stroški_po_elementih[Koda G/K],Mesečni_znesek_povzetek[[#This Row],[Koda G/K]],Stroški_po_elementih[Datum računa],\">=\"&F$3,Stroški_po_elementih[Datum računa],\"<=\"&F$4)+SUMIFS(Drugo[Preverite količino],Drugo[Koda G/K],Mesečni_znesek_povzetek[[#This Row],[Koda G/K]],Drugo[Inicializirana je zahteva za preverjanje datuma],\">=\"&DATEVALUE(\" 1 \"&Mesečni_znesek_povzetek[[#Headers],[Marec]]&_LETO),Drugo[Inicializirana je zahteva za preverjanje datuma],\"<=\"&F$4)","v":{"v":0,"d":"0.00 €"}},{"$f":"SUMIFS(Stroški_po_elementih[Preverite količino],Stroški_po_elementih[Koda G/K],Mesečni_znesek_povzetek[[#This Row],[Koda G/K]],Stroški_po_elementih[Datum računa],\">=\"&G$3,Stroški_po_elementih[Datum računa],\"<=\"&G$4)+SUMIFS(Drugo[Preverite količino],Drugo[Koda G/K],Mesečni_znesek_povzetek[[#This Row],[Koda G/K]],Drugo[Inicializirana je zahteva za preverjanje datuma],\">=\"&DATEVALUE(\" 1 \"&Mesečni_znesek_povzetek[[#Headers],[Apr]]&_LETO),Drugo[Inicializirana je zahteva za preverjanje datuma],\"<=\"&G$4)","v":{"v":0,"d":"0.00 €"}},{"$f":"SUMIFS(Stroški_po_elementih[Preverite količino],Stroški_po_elementih[Koda G/K],Mesečni_znesek_povzetek[[#This Row],[Koda G/K]],Stroški_po_elementih[Datum računa],\">=\"&H$3,Stroški_po_elementih[Datum računa],\"<=\"&H$4)+SUMIFS(Drugo[Preverite količino],Drugo[Koda G/K],Mesečni_znesek_povzetek[[#This Row],[Koda G/K]],Drugo[Inicializirana je zahteva za preverjanje datuma],\">=\"&DATEVALUE(\" 1 \"&Mesečni_znesek_povzetek[[#Headers],[Maj]]&_LETO),Drugo[Inicializirana je zahteva za preverjanje datuma],\"<=\"&H$4)","v":{"v":0,"d":"0.00 €"}},{"$f":"SUMIFS(Stroški_po_elementih[Preverite količino],Stroški_po_elementih[Koda G/K],Mesečni_znesek_povzetek[[#This Row],[Koda G/K]],Stroški_po_elementih[Datum računa],\">=\"&I$3,Stroški_po_elementih[Datum računa],\"<=\"&I$4)+SUMIFS(Drugo[Preverite količino],Drugo[Koda G/K],Mesečni_znesek_povzetek[[#This Row],[Koda G/K]],Drugo[Inicializirana je zahteva za preverjanje datuma],\">=\"&DATEVALUE(\" 1 \"&Mesečni_znesek_povzetek[[#Headers],[Jun]]&_LETO),Drugo[Inicializirana je zahteva za preverjanje datuma],\"<=\"&I$4)","v":{"v":0,"d":"0.00 €"}},{"$f":"SUMIFS(Stroški_po_elementih[Preverite količino],Stroški_po_elementih[Koda G/K],Mesečni_znesek_povzetek[[#This Row],[Koda G/K]],Stroški_po_elementih[Datum računa],\">=\"&J$3,Stroški_po_elementih[Datum računa],\"<=\"&J$4)+SUMIFS(Drugo[Preverite količino],Drugo[Koda G/K],Mesečni_znesek_povzetek[[#This Row],[Koda G/K]],Drugo[Inicializirana je zahteva za preverjanje datuma],\">=\"&DATEVALUE(\" 1 \"&Mesečni_znesek_povzetek[[#Headers],[Julij]]&_LETO),Drugo[Inicializirana je zahteva za preverjanje datuma],\"<=\"&J$4)","v":{"v":0,"d":"0.00 €"}},{"$f":"SUMIFS(Stroški_po_elementih[Preverite količino],Stroški_po_elementih[Koda G/K],Mesečni_znesek_povzetek[[#This Row],[Koda G/K]],Stroški_po_elementih[Datum računa],\">=\"&K$3,Stroški_po_elementih[Datum računa],\"<=\"&K$4)+SUMIFS(Drugo[Preverite količino],Drugo[Koda G/K],Mesečni_znesek_povzetek[[#This Row],[Koda G/K]],Drugo[Inicializirana je zahteva za preverjanje datuma],\">=\"&DATEVALUE(\" 1 \"&Mesečni_znesek_povzetek[[#Headers],[Avgust]]&_LETO),Drugo[Inicializirana je zahteva za preverjanje datuma],\"<=\"&K$4)","v":{"v":0,"d":"0.00 €"}},{"$f":"SUMIFS(Stroški_po_elementih[Preverite količino],Stroški_po_elementih[Koda G/K],Mesečni_znesek_povzetek[[#This Row],[Koda G/K]],Stroški_po_elementih[Datum računa],\">=\"&L$3,Stroški_po_elementih[Datum računa],\"<=\"&L$4)+SUMIFS(Drugo[Preverite količino],Drugo[Koda G/K],Mesečni_znesek_povzetek[[#This Row],[Koda G/K]],Drugo[Inicializirana je zahteva za preverjanje datuma],\">=\"&DATEVALUE(\" 1 \"&Mesečni_znesek_povzetek[[#Headers],[September]]&_LETO),Drugo[Inicializirana je zahteva za preverjanje datuma],\"<=\"&L$4)","v":{"v":0,"d":"0.00 €"}},{"$f":"SUMIFS(Stroški_po_elementih[Preverite količino],Stroški_po_elementih[Koda G/K],Mesečni_znesek_povzetek[[#This Row],[Koda G/K]],Stroški_po_elementih[Datum računa],\">=\"&M$3,Stroški_po_elementih[Datum računa],\"<=\"&M$4)+SUMIFS(Drugo[Preverite količino],Drugo[Koda G/K],Mesečni_znesek_povzetek[[#This Row],[Koda G/K]],Drugo[Inicializirana je zahteva za preverjanje datuma],\">=\"&DATEVALUE(\" 1 \"&Mesečni_znesek_povzetek[[#Headers],[Oktober]]&_LETO),Drugo[Inicializirana je zahteva za preverjanje datuma],\"<=\"&M$4)","v":{"v":0,"d":"0.00 €"}},{"$f":"SUMIFS(Stroški_po_elementih[Preverite količino],Stroški_po_elementih[Koda G/K],Mesečni_znesek_povzetek[[#This Row],[Koda G/K]],Stroški_po_elementih[Datum računa],\">=\"&N$3,Stroški_po_elementih[Datum računa],\"<=\"&N$4)+SUMIFS(Drugo[Preverite količino],Drugo[Koda G/K],Mesečni_znesek_povzetek[[#This Row],[Koda G/K]],Drugo[Inicializirana je zahteva za preverjanje datuma],\">=\"&DATEVALUE(\" 1 \"&Mesečni_znesek_povzetek[[#Headers],[November]]&_LETO),Drugo[Inicializirana je zahteva za preverjanje datuma],\"<=\"&N$4)","v":{"v":0,"d":"0.00 €"}},{"$f":"SUMIFS(Stroški_po_elementih[Preverite količino],Stroški_po_elementih[Koda G/K],Mesečni_znesek_povzetek[[#This Row],[Koda G/K]],Stroški_po_elementih[Datum računa],\">=\"&O$3,Stroški_po_elementih[Datum računa],\"<=\"&O$4)+SUMIFS(Drugo[Preverite količino],Drugo[Koda G/K],Mesečni_znesek_povzetek[[#This Row],[Koda G/K]],Drugo[Inicializirana je zahteva za preverjanje datuma],\">=\"&DATEVALUE(\" 1 \"&Mesečni_znesek_povzetek[[#Headers],[December]]&_LETO),Drugo[Inicializirana je zahteva za preverjanje datuma],\"<=\"&O$4)","v":{"v":0,"d":"0.00 €"}},{"$f":"SUM(Mesečni_znesek_povzetek[[#This Row],[Januar]:[December]])","v":{"v":0,"d":"0.00 €"}}]
[null,"Vsota",null,{"$f":"SUBTOTAL(109,Mesečni_znesek_povzetek[Januar])","v":{"v":0,"d":"0.00 €"}},{"$f":"SUBTOTAL(109,Mesečni_znesek_povzetek[Februar])","v":{"v":0,"d":"0.00 €"}},{"$f":"SUBTOTAL(109,Mesečni_znesek_povzetek[Marec])","v":{"v":0,"d":"0.00 €"}},{"$f":"SUBTOTAL(109,Mesečni_znesek_povzetek[Apr])","v":{"v":0,"d":"0.00 €"}},{"$f":"SUBTOTAL(109,Mesečni_znesek_povzetek[Maj])","v":{"v":0,"d":"0.00 €"}},{"$f":"SUBTOTAL(109,Mesečni_znesek_povzetek[Jun])","v":{"v":0,"d":"0.00 €"}},{"$f":"SUBTOTAL(109,Mesečni_znesek_povzetek[Julij])","v":{"v":0,"d":"0.00 €"}},{"$f":"SUBTOTAL(109,Mesečni_znesek_povzetek[Avgust])","v":{"v":0,"d":"0.00 €"}},{"$f":"SUBTOTAL(109,Mesečni_znesek_povzetek[September])","v":{"v":0,"d":"0.00 €"}},{"$f":"SUBTOTAL(109,Mesečni_znesek_povzetek[Oktober])","v":{"v":0,"d":"0.00 €"}},{"$f":"SUBTOTAL(109,Mesečni_znesek_povzetek[November])","v":{"v":0,"d":"0.00 €"}},{"$f":"SUBTOTAL(109,Mesečni_znesek_povzetek[December])","v":{"v":0,"d":"0.00 €"}},{"$f":"SUBTOTAL(109,Mesečni_znesek_povzetek[Vsota])","v":{"v":0,"d":"0.00 €"}}]

{"sheet":"SEZNAM STROŠKOV","index":2,"n_rows":6,"n_cols":10,"rows_kept":6,"merged":[[1,1,1,9],[2,1,2,5],[2,6,2,9]]}
[]
[null,"SEZNAM STROŠKOV"]
[]
[null,"Koda G/K","Datum računa","Št. računa","Zahteval","Preverite količino","Prejemnik plačila","Preverite uporabo","Način porazdelitve","Datum datoteke"]
[null,1000,"Datum",100,"Peter Kos",{"v":750.75,"d":"750.75 €"},"Pošiljanje sporočil ","Pošiljatelj","Pošta","Datum"]
[null,7000,"Datum",101,"Marko Potočnik",{"v":2500,"d":"2,500.00 €"},"A. Datum podjetja ","2 namizna računalnika","Dobropis","Datum"]

{"sheet":"DOBRODELNO IN SPONZORSTVA","index":3,"n_rows":6,"n_cols":12,"rows_kept":6,"merged":[[1,1,1,11],[2,1,2,5],[2,6,2,11]]}
[]
[null,"DOBRODELNE DEJAVNOSTI IN SPONZORSTVA"]
[]
[null,"Koda G/K","Inicializirana je zahteva za preverjanje datuma","Zahteval","Preverite količino","Prispevki v prejšnjem letu","Prejemnik plačila","Uporabljeno za","Podpisal","Kategorija","Način porazdelitve","Datum datoteke"]
[null,12000,"Datum","Nataša Medved",{"v":1000,"d":"1,000.00 €"},{"v":12,"d":"12.00 €"},"Umetniška šola ","Štipendije","Ivana Uršič","Umetnost","Preveri","Datum"]
[null,11000,"Datum","Nataša Medved",{"v":2500,"d":"2,500.00 €"},{"v":0,"d":"0.00 €"},"Igrače Wingtip ","Skupnost","Milena Tomažič","Skupnost","Preveri","Datum"]